Workbook

Sheet All Bridges
A1: Bridge ID | B1: Discounted Benefits ($M) | C1: Discounted Costs ($M) | D1: Benefit/Cost Ratio | E1: Vehicle Operating Costs ($M) | F1: Personal & Crew Time ($M) | G1: Logistics/ Freight Costs ($M) | H1: Safety ($M) | I1: Environmental ($M) | J1: Capital Investment Costs ($M) | K1: O&M Costs ($M) | L1: Residual Value ($M) | O1: Click to button rerun all bridges benefits & costs:
A2: 13079 | B2: =SUM(E2:I2) -> 9.764125567 | C2: =SUM(J2:L2) -> 1.607096083 | D2: =B2/C2 -> 6.075632732 | E2: =C$34/2+C$35/2+C$36/4+C$37/4+C$38/7 -> 3.427151714 | F2: =D$34/2+D$35/2+D$36/4+D$37/4+D$38/7 -> 3.039865248 | G2: =E$34/2+E$35/2+E$36/4+E$37/4+E$38/7 -> 0.8891594928 | H2: =F$34/2+F$35/2+F$36/4+F$37/4+F$38/7 -> 2.139900898 | I2: =G$34/2+G$35/2+G$36/4+G$37/4+G$38/7 -> 0.2680482141 | J2: 1.820995233 | K2: -0.03264229032 | L2: -0.1812568594 | O2: (i.e. if inputs changed in sensitivity tests)
A3: 10053 | B3: =SUM(E3:I3) -> 9.764125567 | C3: =SUM(J3:L3) -> 1.090923773 | D3: =B3/C3 -> 8.950327977 | E3: =C$34/2+C$35/2+C$36/4+C$37/4+C$38/7 -> 3.427151714 | F3: =D$34/2+D$35/2+D$36/4+D$37/4+D$38/7 -> 3.039865248 | G3: 0.8891594928 | H3: =F$34/2+F$35/2+F$36/4+F$37/4+F$38/7 -> 2.139900898 | I3: 0.2680482141 | J3: 1.24963317 | K3: -0.03264229032 | L3: -0.1260671069
A4: 12934 | B4: 8.651631098 | C4: 0.6964240492 | D4: 12.42293558 | E4: =C$36/4+C$37/4+C$38/7 -> 3.036672577 | F4: =D$36/4+D$37/4+D$38/7 -> 2.693512341 | G4: 0.7878513919 | H4: 1.896087164 | I4: 0.2375076241 | J4: 0.8158169877 | K4: -0.03264229032 | L4: -0.08675064815
A5: 12980 | B5: 8.651631098 | C5: 0.612429195 | D5: 14.12674505 | E5: =C$36/4+C$37/4+C$38/7 -> 3.036672577 | F5: 2.693512341 | G5: 0.7878513919 | H5: 1.896087164 | I5: 0.2375076241 | J5: 0.6450714853 | K5: -0.03264229032 | L5: 0
A6: 13653 | B6: 8.211268703 | C6: 1.801853269 | D6: 4.557123961 | E6: =C$38/7 -> 2.882107918 | F6: =D$38/7 -> 2.556414315 | G6: 0.7477502686 | H6: 1.799577561 | I6: 0.2254186406 | J6: 2.061163576 | K6: -0.05928529104 | L6: -0.2000250167
A7: 13925 | B7: 8.211268703 | C7: 3.021044175 | D7: 2.718023381 | E7: =C$38/7 -> 2.882107918 | F7: 2.556414315 | G7: 0.7477502686 | H7: 1.799577561 | I7: 0.2254186406 | J7: 3.410711813 | K7: -0.05928529104 | L7: -0.3303823471
A8: 13783 | B8: 8.211268703 | C8: 0.7331284875 | D8: 11.20031324 | E8: =C$38/7 -> 2.882107918 | F8: 2.556414315 | G8: 0.7477502686 | H8: 1.799577561 | I8: 0.2254186406 | J8: 0.7657707778 | K8: -0.03264229032 | L8: 0
A9: TOTAL: | B9: =SUM(B2:B8) -> 61.46531944 | C9: =SUM(C2:C8) -> 9.562899032 | D9: =B9/C9 -> 6.427477613 | E9: =SUM(E2:E8) -> 21.57397234 | F9: 19.13599812 | G9: 5.597272575 | H9: 13.47070881 | I9: 1.687367598 | J9: 10.76916304 | K9: -0.2817820337 | L9: -0.9244819783 | O9: Notes:
J10: Costs calculated by macro that cycles through all bridges | O10: Blue cells show key summary results
O11: Green cells show the discounted present value of each category of benefit
A12: SUMMARY TABLES: | O12: Red cells show the discounted present value of costs
A13: Benefit Type | B13: Value ($M's) | D13: Cost Category | E13: Discounted at 7%
A14: Vehicle Operating Costs | B14: =E9 -> 21.57397234 | D14: Capital Investment Costs | E14: =J9 -> 10.76916304
A15: Personal & Crew Time | B15: =F9 -> 19.13599812 | D15: O&M Costs | E15: =K9 -> -0.2817820337
A16: Logistics/ Freight Costs | B16: =G9 -> 5.597272575 | D16: Residual Value | E16: =L9 -> -0.9244819783
A17: Safety | B17: =H9 -> 13.47070881 | D17: Total Costs | E17: =SUM(E14:E16) -> 9.562899032
A18: Environmental | B18: =I9 -> 1.687367598
A19: Total Benefits | B19: =SUM(B14:B18) -> 61.46531944
A22: Benefit & Costs Categories | B22: Value ($M's)
A23: Total Benefits | B23: =B19 -> 61.46531944
A24: Capital Investments | B24: =J9 -> 10.76916304
A25: Oper. & Maint. Costs | B25: =K9 -> -0.2817820337
A26: Residual Value | B26: =L9 -> -0.9244819783
A27: Total Costs | B27: =SUM(B24:B26) -> 9.562899032
A28: Net Present Value | B28: =B23-B27 -> 51.90242041
A29: Benefit Cost Ratio | B29: =B23/B27 -> 6.427477613
A31: Calculated by Macro that Cycles Through All Traffic Groups:
A32: Benefits by Traffic Group
A33: Traffic Group | B33: Bridges | C33: Vehicle Operating Costs ($M's) | D33: Value of Personal & Crew Time ($M's) | E33: Shipper/ Logistics Cost ($M's) | F33: Safety Cost ($M's) | G33: Environmental Cost ($M's) | H33: Total Benefit ($M's)
A34: 1.1 | B34: 13079 10053 | C34: 0.3904791373 | D34: 0.3463529072 | E34: 0.1013081009 | F34: 0.243813734 | G34: 0.03054059001 | H34: 1.112494469
A35: 1.2 | B35: 13079 10053 | C35: 0.3904791373 | D35: 0.3463529072 | E35: 0.1013081009 | F35: 0.243813734 | G35: 0.03054059001 | H35: 1.112494469
A36: 2.1 | B36: 13079 10053 12934 12980 | C36: 0.309129317 | D36: 0.2741960515 | E36: 0.08020224655 | F36: 0.1930192061 | G36: 0.02417796709 | H36: 0.8807247884
A37: 2.2 | B37: 13079 10053 12934 12980 | C37: 0.309129317 | D37: 0.2741960515 | E37: 0.08020224655 | F37: 0.1930192061 | G37: 0.02417796709 | H37: 0.8807247884
A38: 3 | B38: All | C38: 20.17475543 | D38: 17.89490021 | E38: 5.23425188 | F38: 12.59704293 | G38: 1.577930484 | H38: 57.47888092
A39: Total | C39: =SUM(C34:C38) -> 21.57397234 | D39: =SUM(D34:D38) -> 19.13599812 | E39: 5.597272575 | F39: 13.47070881 | G39: 1.687367598 | H39: 61.46531944

Sheet BCA Summary
A1: Bridge ID: | B1: 13783 | C1: Select individual bridge from dropdown
A2: Benefit Cost Summary
A3: Benefit | B3: 7% discount rate (in $M's)
A4: Vehicle Operating Costs | B4: =VLOOKUP($B$1,'All Bridges'!$A$2:$I$8,5,FALSE) -> 2.882107918
A5: Value of Personal & Crew Time | B5: =VLOOKUP($B$1,'All Bridges'!$A$2:$I$8,6,FALSE) -> 2.556414315
A6: Logistics/Freight Costs | B6: =VLOOKUP($B$1,'All Bridges'!$A$2:$I$8,7,FALSE) -> 0.7477502686
A7: Safety | B7: =VLOOKUP($B$1,'All Bridges'!$A$2:$I$8,8,FALSE) -> 1.799577561
A8: Environmental: Non-CO2 | B8: =VLOOKUP($B$1,'All Bridges'!$A$2:$I$8,9,FALSE) -> 0.2254186406
A9: Total Benefits | B9: =VLOOKUP($B$1,'All Bridges'!$A$2:$I$8,2,FALSE) -> 8.211268703
A11: Costs | B11: 7% discount rate (in $M's)
A12: Capital Investment Costs | B12: ='Cost Summary (by Brdg)'!E38 -> 0.7657707778
A13: Operation and Maintenance Costs | B13: ='Cost Summary (by Brdg)'!F38 -> -0.03264229032
A14: Residual Value | B14: =-'Cost Summary (by Brdg)'!J38 -> 0
A15: Total Costs | B15: =SUM(B12:B14) -> 0.7331284875
B17: 7% discount rate (in $M's)
A18: Net Present Value | B18: =B9-B15 -> 7.478140216
B20: 7% discount rate
A21: Benefit/Cost Ratio | B21: =B9/B15 -> 11.20031324

Sheet Benefits Summary (by Tfc Grp)
B1: Traffic Group: | C1: ='Traffic Group Benefits'!D2 -> 3 | S1: Discount rate: | T1: ='Cost Summary (by Brdg)'!G1 -> 0.07
B2: Benefits Summary | J2: Benefits Discounted at 7% (in $millions) | Q2: 2018
B3: Year | C3: Vehicle Operating Costs | D3: Value of Personal & Crew Time | E3: Shipper/ Logistics Cost | F3: Safety Cost | G3: Environmental Cost | H3: Total | J3: Year | K3: Vehicle Operating Costs | L3: Value of Personal & Crew Time | M3: Shipper/ Logistics Cost | N3: Safety Cost | O3: Environmental Cost | P3: Total Benefits | Q3: Discount Factor 7%
B4: 2018 | C4: ='Traffic Group Benefits'!N8+'Traffic Group Benefits'!O8 -> 0 | D4: ='Traffic Group Benefits'!P8+'Traffic Group Benefits'!Q8 -> 0 | E4: ='Traffic Group Benefits'!R8 -> 0 | F4: ='Traffic Group Benefits'!S8 -> 0 | G4: ='Traffic Group Benefits'!T8+'Traffic Group Benefits'!U8 -> 0 | H4: =SUM(C4:G4) -> 0 | J4: =B4 -> 2018 | K4: =(C4/1000000)*$Q4 -> 0 | L4: =(D4/1000000)*$Q4 -> 0 | M4: 0 | N4: 0 | O4: 0 | P4: =(H4/1000000)*$Q4 -> 0 | Q4: =1/((1+$T$1)^(J4-$Q$2)) -> 1
B5: 2019 | C5: ='Traffic Group Benefits'!N9+'Traffic Group Benefits'!O9 -> 0 | D5: ='Traffic Group Benefits'!P9+'Traffic Group Benefits'!Q9 -> 0 | E5: ='Traffic Group Benefits'!R9 -> 0 | F5: ='Traffic Group Benefits'!S9 -> 0 | G5: ='Traffic Group Benefits'!T9+'Traffic Group Benefits'!U9 -> 0 | H5: =SUM(C5:G5) -> 0 | J5: 2019 | K5: =(C5/1000000)*$Q5 -> 0 | L5: =(D5/1000000)*$Q5 -> 0 | M5: =(E5/1000000)*$Q5 -> 0 | N5: =(F5/1000000)*$Q5 -> 0 | O5: =(G5/1000000)*$Q5 -> 0 | P5: =(H5/1000000)*$Q5 -> 0 | Q5: =1/((1+$T$1)^(J5-$Q$2)) -> 0.9345794393
B6: 2020 | C6: ='Traffic Group Benefits'!N10+'Traffic Group Benefits'!O10 -> 0 | D6: ='Traffic Group Benefits'!P10+'Traffic Group Benefits'!Q10 -> 0 | E6: ='Traffic Group Benefits'!R10 -> 0 | F6: ='Traffic Group Benefits'!S10 -> 0 | G6: ='Traffic Group Benefits'!T10+'Traffic Group Benefits'!U10 -> 0 | H6: 0 | J6: 2020 | K6: 0 | L6: 0 | M6: 0 | N6: 0 | O6: 0 | P6: 0 | Q6: 0.8734387283
B7: 2021 | C7: ='Traffic Group Benefits'!N11+'Traffic Group Benefits'!O11 -> 0 | D7: ='Traffic Group Benefits'!P11+'Traffic Group Benefits'!Q11 -> 0 | E7: ='Traffic Group Benefits'!R11 -> 0 | F7: ='Traffic Group Benefits'!S11 -> 0 | G7: ='Traffic Group Benefits'!T11+'Traffic Group Benefits'!U11 -> 0 | H7: 0 | J7: 2021 | K7: 0 | L7: 0 | M7: 0 | N7: 0 | O7: 0 | P7: 0 | Q7: 0.8162978769
B8: 2022 | C8: ='Traffic Group Benefits'!N12+'Traffic Group Benefits'!O12 -> 0 | D8: ='Traffic Group Benefits'!P12+'Traffic Group Benefits'!Q12 -> 0 | E8: ='Traffic Group Benefits'!R12 -> 0 | F8: ='Traffic Group Benefits'!S12 -> 0 | G8: ='Traffic Group Benefits'!T12+'Traffic Group Benefits'!U12 -> 0 | H8: 0 | J8: 2022 | K8: 0 | L8: 0 | M8: 0 | N8: 0 | O8: 0 | P8: 0 | Q8: 0.762895212
B9: 2023 | C9: ='Traffic Group Benefits'!N13+'Traffic Group Benefits'!O13 -> 879057.6616 | D9: ='Traffic Group Benefits'!P13+'Traffic Group Benefits'!Q13 -> 541497.4369 | E9: ='Traffic Group Benefits'!R13 -> 518801.8576 | F9: ='Traffic Group Benefits'!S13 -> 290557.3135 | G9: ='Traffic Group Benefits'!T13+'Traffic Group Benefits'!U13 -> 129667.7646 | H9: 2359582.034 | J9: 2023 | K9: 0.6267559637 | L9: 0.3860801887 | M9: 0.3698985543 | N9: 0.2071633489 | O9: 0.09245132411 | P9: 1.68234938 | Q9: 0.7129861795
B10: 2024 | C10: ='Traffic Group Benefits'!N14+'Traffic Group Benefits'!O14 -> 886969.1805 | D10: ='Traffic Group Benefits'!P14+'Traffic Group Benefits'!Q14 -> 546370.9138 | E10: ='Traffic Group Benefits'!R14 -> 523471.0743 | F10: ='Traffic Group Benefits'!S14 -> 293172.3293 | G10: ='Traffic Group Benefits'!T14+'Traffic Group Benefits'!U14 -> 130834.7745 | H10: 2380818.272 | J10: 2024 | K10: 0.5910250162 | L10: 0.3640700097 | M10: 0.3488108797 | N10: 0.1953531019 | O10: 0.0871807346 | P10: 1.586439742 | Q10: 0.6663422238
B11: 2025 | C11: ='Traffic Group Benefits'!N15+'Traffic Group Benefits'!O15 -> 894951.9032 | D11: ='Traffic Group Benefits'!P15+'Traffic Group Benefits'!Q15 -> 551288.252 | E11: ='Traffic Group Benefits'!R15 -> 528182.3139 | F11: ='Traffic Group Benefits'!S15 -> 295810.8803 | G11: ='Traffic Group Benefits'!T15+'Traffic Group Benefits'!U15 -> 132012.2875 | H11: 2402245.637 | J11: 2025 | K11: 0.5573310667 | L11: 0.3433146166 | M11: 0.3289253997 | N11: 0.1842161493 | O11: 0.08221061796 | P11: 1.49599785 | Q11: 0.6227497419
B12: 2026 | C12: ='Traffic Group Benefits'!N16+'Traffic Group Benefits'!O16 -> 903006.4703 | D12: ='Traffic Group Benefits'!P16+'Traffic Group Benefits'!Q16 -> 556249.8463 | E12: ='Traffic Group Benefits'!R16 -> 532935.9548 | F12: ='Traffic Group Benefits'!S16 -> 298473.1782 | G12: ='Traffic Group Benefits'!T16+'Traffic Group Benefits'!U16 -> 133200.3981 | H12: 2423865.848 | J12: 2026 | K12: 0.5255579872 | L12: 0.3237424749 | M12: 0.3101735778 | N12: 0.1737141072 | O12: 0.07752384441 | P12: 1.410711992 | Q12: 0.5820091046
B13: 2027 | C13: ='Traffic Group Benefits'!N17+'Traffic Group Benefits'!O17 -> 911133.5285 | D13: ='Traffic Group Benefits'!P17+'Traffic Group Benefits'!Q17 -> 561256.0949 | E13: ='Traffic Group Benefits'!R17 -> 537732.3784 | F13: ='Traffic Group Benefits'!S17 -> 301159.4368 | G13: ='Traffic Group Benefits'!T17+'Traffic Group Benefits'!U17 -> 134399.2017 | H13: 2445680.64 | J13: 2027 | K13: 0.4955962702 | L13: 0.3052861282 | M13: 0.2924907851 | N13: 0.1638107796 | O13: 0.07310426076 | P13: 1.330288224 | Q13: 0.5439337426
B14: 2028 | C14: ='Traffic Group Benefits'!N18+'Traffic Group Benefits'!O18 -> 919333.7303 | D14: ='Traffic Group Benefits'!P18+'Traffic Group Benefits'!Q18 -> 566307.3998 | E14: ='Traffic Group Benefits'!R18 -> 542571.9698 | F14: ='Traffic Group Benefits'!S18 -> 303869.8717 | G14: ='Traffic Group Benefits'!T18+'Traffic Group Benefits'!U18 -> 135608.7945 | H14: 2467691.766 | J14: 2028 | K14: 0.467342651 | L14: 0.2878819658 | M14: 0.2758160768 | N14: 0.1544720342 | O14: 0.06893663468 | P14: 1.254449362 | Q14: 0.5083492921
B15: 2029 | C15: ='Traffic Group Benefits'!N19+'Traffic Group Benefits'!O19 -> 927607.7339 | D15: ='Traffic Group Benefits'!P19+'Traffic Group Benefits'!Q19 -> 571404.1663 | E15: ='Traffic Group Benefits'!R19 -> 547455.1175 | F15: ='Traffic Group Benefits'!S19 -> 306604.7006 | G15: ='Traffic Group Benefits'!T19+'Traffic Group Benefits'!U19 -> 136829.2736 | H15: 2489900.992 | J15: 2029 | K15: 0.4406997522 | L15: 0.2714700033 | M15: 0.2600919827 | N15: 0.1456656846 | O15: 0.06500660223 | P15: 1.182934025 | Q15: 0.4750927964
B16: 2030 | C16: ='Traffic Group Benefits'!N20+'Traffic Group Benefits'!O20 -> 935956.2035 | D16: ='Traffic Group Benefits'!P20+'Traffic Group Benefits'!Q20 -> 576546.8038 | E16: ='Traffic Group Benefits'!R20 -> 552382.2136 | F16: ='Traffic Group Benefits'!S20 -> 309364.1429 | G16: ='Traffic Group Benefits'!T20+'Traffic Group Benefits'!U20 -> 138060.7371 | H16: 2512310.101 | J16: 2030 | K16: 0.4155757477 | L16: 0.255993676 | M16: 0.2452643089 | N16: 0.1373613792 | O16: 0.06130061837 | P16: 1.11549573 | Q16: 0.4440119592
B17: 2031 | C17: ='Traffic Group Benefits'!N21+'Traffic Group Benefits'!O21 -> 944379.8093 | D17: ='Traffic Group Benefits'!P21+'Traffic Group Benefits'!Q21 -> 581735.7251 | E17: ='Traffic Group Benefits'!R21 -> 557353.6535 | F17: ='Traffic Group Benefits'!S21 -> 312148.4202 | G17: ='Traffic Group Benefits'!T21+'Traffic Group Benefits'!U21 -> 139303.2837 | H17: 2534920.892 | J17: 2031 | K17: 0.3918840462 | L17: 0.241399644 | M17: 0.2312819511 | N17: 0.1295304968 | O17: 0.05780591022 | P17: 1.051902048 | Q17: 0.4149644479
B18: 2032 | C18: ='Traffic Group Benefits'!N22+'Traffic Group Benefits'!O22 -> 952879.2276 | D18: ='Traffic Group Benefits'!P22+'Traffic Group Benefits'!Q22 -> 586971.3466 | E18: ='Traffic Group Benefits'!R22 -> 562369.8364 | F18: ='Traffic Group Benefits'!S22 -> 314957.7559 | G18: ='Traffic Group Benefits'!T22+'Traffic Group Benefits'!U22 -> 140557.0133 | H18: 2557735.18 | J18: 2032 | K18: 0.3695429931 | L18: 0.2276376082 | M18: 0.2180967184 | N18: 0.1221460479 | O18: 0.05451043309 | P18: 0.9919338007 | Q18: 0.387817241
B19: 2033 | C19: ='Traffic Group Benefits'!N23+'Traffic Group Benefits'!O23 -> 3687418.474 | D19: ='Traffic Group Benefits'!P23+'Traffic Group Benefits'!Q23 -> 3589667.218 | E19: ='Traffic Group Benefits'!R23 -> 567431.1649 | F19: ='Traffic Group Benefits'!S23 -> 2648269.798 | G19: ='Traffic Group Benefits'!T23+'Traffic Group Benefits'!U23 -> 206849.0584 | H19: 10699635.71 | J19: 2033 | K19: 1.336490149 | L19: 1.301060595 | M19: 0.2056631671 | N19: 0.9598548472 | O19: 0.0749716179 | P19: 3.878040376 | Q19: 0.3624460196
B20: 2034 | C20: ='Traffic Group Benefits'!N24+'Traffic Group Benefits'!O24 -> 3720605.241 | D20: ='Traffic Group Benefits'!P24+'Traffic Group Benefits'!Q24 -> 3621974.223 | E20: ='Traffic Group Benefits'!R24 -> 572538.0454 | F20: ='Traffic Group Benefits'!S24 -> 2672104.226 | G20: ='Traffic Group Benefits'!T24+'Traffic Group Benefits'!U24 -> 208710.7 | H20: 10795932.43 | J20: 2034 | K20: 1.26029772 | L20: 1.226887982 | M20: 0.1939384445 | N20: 0.9051341503 | O20: 0.07069753501 | P20: 3.656955831 | Q20: 0.3387345978
B21: 2035 | C21: ='Traffic Group Benefits'!N25+'Traffic Group Benefits'!O25 -> 3754090.688 | D21: ='Traffic Group Benefits'!P25+'Traffic Group Benefits'!Q25 -> 3654571.991 | E21: ='Traffic Group Benefits'!R25 -> 577690.8878 | F21: ='Traffic Group Benefits'!S25 -> 2696153.164 | G21: ='Traffic Group Benefits'!T25+'Traffic Group Benefits'!U25 -> 210589.0963 | H21: 10893095.83 | J21: 2035 | K21: 1.188448971 | L21: 1.1569439 | M21: 0.1828821407 | N21: 0.8535330445 | O21: 0.06666711479 | P21: 3.448475172 | Q21: 0.3165743905
B22: 2036 | C22: ='Traffic Group Benefits'!N26+'Traffic Group Benefits'!O26 -> 3787877.504 | D22: ='Traffic Group Benefits'!P26+'Traffic Group Benefits'!Q26 -> 3687463.139 | E22: ='Traffic Group Benefits'!R26 -> 582890.1058 | F22: ='Traffic Group Benefits'!S26 -> 2720418.543 | G22: ='Traffic Group Benefits'!T26+'Traffic Group Benefits'!U26 -> 212484.3981 | H22: 10991133.69 | J22: 2036 | K22: 1.120696273 | L22: 1.090987285 | M22: 0.1724561495 | N22: 0.804873684 | O22: 0.06286646619 | P22: 3.251879858 | Q22: 0.2958639163
B23: 2037 | C23: ='Traffic Group Benefits'!N27+'Traffic Group Benefits'!O27 -> 3821968.401 | D23: ='Traffic Group Benefits'!P27+'Traffic Group Benefits'!Q27 -> 3720650.307 | E23: ='Traffic Group Benefits'!R27 -> 588136.1167 | F23: ='Traffic Group Benefits'!S27 -> 2744902.309 | G23: ='Traffic Group Benefits'!T27+'Traffic Group Benefits'!U27 -> 214396.7577 | H23: 11090053.89 | J23: 2037 | K23: 1.056806111 | L23: 1.028790814 | M23: 0.1626245372 | N23: 0.7589883619 | O23: 0.05928249008 | P23: 3.066492315 | Q23: 0.276508333
B24: 2038 | C24: ='Traffic Group Benefits'!N28+'Traffic Group Benefits'!O28 -> 3856366.117 | D24: ='Traffic Group Benefits'!P28+'Traffic Group Benefits'!Q28 -> 3754136.16 | E24: ='Traffic Group Benefits'!R28 -> 593429.3418 | F24: ='Traffic Group Benefits'!S28 -> 2769606.43 | G24: ='Traffic Group Benefits'!T28+'Traffic Group Benefits'!U28 -> 216326.3285 | H24: 11189864.38 | J24: 2038 | K24: 0.9965582864 | L24: 0.9701401228 | M24: 0.1533534187 | N24: 0.7157189319 | O24: 0.0559028341 | P24: 2.891673594 | Q24: 0.2584190028
B25: 2039 | C25: ='Traffic Group Benefits'!N29+'Traffic Group Benefits'!O29 -> 3891073.412 | D25: ='Traffic Group Benefits'!P29+'Traffic Group Benefits'!Q29 -> 3787923.385 | E25: ='Traffic Group Benefits'!R29 -> 598770.2058 | F25: ='Traffic Group Benefits'!S29 -> 2794532.888 | G25: ='Traffic Group Benefits'!T29+'Traffic Group Benefits'!U29 -> 218273.2655 | H25: 11290573.16 | J25: 2039 | K25: 0.9397451505 | L25: 0.9148330691 | M25: 0.1446108407 | N25: 0.6749162638 | O25: 0.0527158501 | P25: 2.726821174 | Q25: 0.2415130867
B26: 2040 | C26: ='Traffic Group Benefits'!N30+'Traffic Group Benefits'!O30 -> 3926093.073 | D26: ='Traffic Group Benefits'!P30+'Traffic Group Benefits'!Q30 -> 3822014.696 | E26: ='Traffic Group Benefits'!R30 -> 604159.1377 | F26: ='Traffic Group Benefits'!S30 -> 2819683.684 | G26: ='Traffic Group Benefits'!T30+'Traffic Group Benefits'!U30 -> 220237.7249 | H26: 11392188.32 | J26: 2040 | K26: 0.8861708942 | L26: 0.8626790343 | M26: 0.1363666712 | N26: 0.6364397291 | O26: 0.04971055398 | P26: 2.571366883 | Q26: 0.2257131652
B27: 2041 | C27: ='Traffic Group Benefits'!N31+'Traffic Group Benefits'!O31 -> 3961427.91 | D27: ='Traffic Group Benefits'!P31+'Traffic Group Benefits'!Q31 -> 3856412.828 | E27: ='Traffic Group Benefits'!R31 -> 609596.5699 | F27: ='Traffic Group Benefits'!S31 -> 2845060.837 | G27: ='Traffic Group Benefits'!T31+'Traffic Group Benefits'!U31 -> 222219.8644 | H27: 11494718.01 | J27: 2041 | K27: 0.8356508713 | L27: 0.8134982669 | M27: 0.1285924965 | N27: 0.6001567165 | O27: 0.04687658781 | P27: 2.424774939 | Q27: 0.2109468833
B28: 2042 | C28: ='Traffic Group Benefits'!N32+'Traffic Group Benefits'!O32 -> 3997080.762 | D28: ='Traffic Group Benefits'!P32+'Traffic Group Benefits'!Q32 -> 3891120.543 | E28: ='Traffic Group Benefits'!R32 -> 615082.9391 | F28: ='Traffic Group Benefits'!S32 -> 2870666.385 | G28: ='Traffic Group Benefits'!T32+'Traffic Group Benefits'!U32 -> 224219.8432 | H28: 11598170.47 | J28: 2042 | K28: 0.7880109618 | L28: 0.7671212629 | M28: 0.1212615224 | N28: 0.5659421748 | O28: 0.04420418421 | P28: 2.286540106 | Q28: 0.1971466199
B29: 2043 | C29: ='Traffic Group Benefits'!N33+'Traffic Group Benefits'!O33 -> 4033054.488 | D29: ='Traffic Group Benefits'!P33+'Traffic Group Benefits'!Q33 -> 3926140.628 | E29: ='Traffic Group Benefits'!R33 -> 620618.6855 | F29: ='Traffic Group Benefits'!S33 -> 2896502.382 | G29: ='Traffic Group Benefits'!T33+'Traffic Group Benefits'!U33 -> 226237.8218 | H29: 11702554.01 | J29: 2043 | K29: 0.7430869724 | L29: 0.7233881816 | M29: 0.1143484824 | N29: 0.5336781816 | O29: 0.04168413259 | P29: 2.156185951 | Q29: 0.1842491775
B30: 2044 | C30: ='Traffic Group Benefits'!N34+'Traffic Group Benefits'!O34 -> 4069351.979 | D30: ='Traffic Group Benefits'!P34+'Traffic Group Benefits'!Q34 -> 3961475.894 | E30: ='Traffic Group Benefits'!R34 -> 626204.2537 | F30: ='Traffic Group Benefits'!S34 -> 2922570.904 | G30: ='Traffic Group Benefits'!T34+'Traffic Group Benefits'!U34 -> 228273.9622 | H30: 11807876.99 | J30: 2044 | K30: 0.7007240702 | L30: 0.6821482946 | M30: 0.1078295502 | N30: 0.5032535376 | O30: 0.03930774746 | P30: 2.0332632 | Q30: 0.172195493
B31: 2045 | C31: ='Traffic Group Benefits'!N35+'Traffic Group Benefits'!O35 -> 4105976.147 | D31: ='Traffic Group Benefits'!P35+'Traffic Group Benefits'!Q35 -> 3997129.177 | E31: ='Traffic Group Benefits'!R35 -> 631840.092 | F31: ='Traffic Group Benefits'!S35 -> 2948874.042 | G31: ='Traffic Group Benefits'!T35+'Traffic Group Benefits'!U35 -> 230328.4278 | H31: 11914147.89 | J31: 2045 | K31: 0.6607762494 | L31: 0.6432594666 | M31: 0.1016822581 | N31: 0.4745633827 | O31: 0.03706683849 | P31: 1.917348195 | Q31: 0.1609303673
B32: 2046 | C32: ='Traffic Group Benefits'!N36+'Traffic Group Benefits'!O36 -> 4142929.932 | D32: ='Traffic Group Benefits'!P36+'Traffic Group Benefits'!Q36 -> 4033103.339 | E32: ='Traffic Group Benefits'!R36 -> 637526.6528 | F32: ='Traffic Group Benefits'!S36 -> 2975413.908 | G32: ='Traffic Group Benefits'!T36+'Traffic Group Benefits'!U36 -> 232401.3837 | H32: 12021375.22 | J32: 2046 | K32: 0.6231058277 | L32: 0.6065876652 | M32: 0.09588541906 | N32: 0.4475088347 | O32: 0.03495368228 | P32: 1.808041429 | Q32: 0.1504022124
B33: 2047 | C33: ='Traffic Group Benefits'!N37+'Traffic Group Benefits'!O37 -> 4180216.301 | D33: ='Traffic Group Benefits'!P37+'Traffic Group Benefits'!Q37 -> 4069401.269 | E33: ='Traffic Group Benefits'!R37 -> 643264.3927 | F33: ='Traffic Group Benefits'!S37 -> 3002192.633 | G33: ='Traffic Group Benefits'!T37+'Traffic Group Benefits'!U37 -> 234492.9961 | H33: 12129567.59 | J33: 2047 | K33: 0.5875829721 | L33: 0.5720064993 | M33: 0.09041905405 | N33: 0.4219966488 | O33: 0.03296099572 | P33: 1.70496617 | Q33: 0.1405628154
B34: 2048 | C34: ='Traffic Group Benefits'!N38+'Traffic Group Benefits'!O38 -> 4217838.248 | D34: ='Traffic Group Benefits'!P38+'Traffic Group Benefits'!Q38 -> 4106025.881 | E34: ='Traffic Group Benefits'!R38 -> 649053.7722 | F34: ='Traffic Group Benefits'!S38 -> 3029212.367 | G34: ='Traffic Group Benefits'!T38+'Traffic Group Benefits'!U38 -> 236603.4331 | H34: 12238733.7 | J34: 2048 | K34: 0.5540852513 | L34: 0.5393967829 | M34: 0.08526432293 | N34: 0.3979388959 | O34: 0.03108191092 | P34: 1.607767164 | Q34: 0.1313671172
B35: 2049 | C35: ='Traffic Group Benefits'!N39+'Traffic Group Benefits'!O39 -> 4255798.792 | D35: ='Traffic Group Benefits'!P39+'Traffic Group Benefits'!Q39 -> 4142980.114 | E35: ='Traffic Group Benefits'!R39 -> 654895.2562 | F35: ='Traffic Group Benefits'!S39 -> 3056475.278 | G35: ='Traffic Group Benefits'!T39+'Traffic Group Benefits'!U39 -> 238732.864 | H35: 12348882.3 | J35: 2049 | K35: 0.5224972136 | L35: 0.5086461252 | M35: 0.08040345966 | N35: 0.3752526598 | O35: 0.02930995151 | P35: 1.51610941 | Q35: 0.1227730067
B36: 2050 | C36: ='Traffic Group Benefits'!N40+'Traffic Group Benefits'!O40 -> 4294100.981 | D36: ='Traffic Group Benefits'!P40+'Traffic Group Benefits'!Q40 -> 4180266.935 | E36: ='Traffic Group Benefits'!R40 -> 660789.3135 | F36: ='Traffic Group Benefits'!S40 -> 3083983.556 | G36: ='Traffic Group Benefits'!T40+'Traffic Group Benefits'!U40 -> 240881.4598 | H36: 12460022.25 | J36: 2050 | K36: 0.4927099893 | L36: 0.4796485424 | M36: 0.07581971103 | N36: 0.3538597511 | O36: 0.02763901035 | P36: 1.429677004 | Q36: 0.1147411277
B37: Total | C37: =SUM(C4:C36) -> 80858543.9 | D37: =SUM(D4:D36) -> 75442085.71 | E37: 16437173.3 | F37: 54522741.36 | G37: 5372732.914 | H37: 232633277.2 | J37: Total | K37: =SUM(K4:K36) -> 20.17475543 | L37: =SUM(L4:L36) -> 17.89490021 | M37: 5.23425188 | N37: 12.59704293 | O37: 1.577930484 | P37: 57.47888092
G38: CHECK | H38: =H37=SUM('Traffic Group Benefits'!N41:U41) -> TRUE

Sheet Cost Summary (by Brdg)
A1: Cost Summary | B1: Bridge ID: | C1: ='BCA Summary'!B1 -> 13783 | E1: Discount Rate: | G1: 0.07
E2: 7% Discount Rate
A3: Year | B3: Construction Costs ($M's) | C3: O&M Costs ($M's) | D3: Total Costs ($M's) | E3: Construction Costs ($M's) | F3: O&M Costs ($M's) | G3: Discount Factor | I3: Residual Value | J3: Discounted Residual Value
A4: 2017 | B4: =('Individual Bridge Costs'!F7-'Individual Bridge Costs'!D7)/1000000 -> 0.2073728487 | C4: =('Individual Bridge Costs'!G7-'Individual Bridge Costs'!E7)/1000000 -> 0 | D4: =B4+C4 -> 0.2073728487 | E4: =B4*$G4 -> 0.2218889481 | F4: =C4*$G4 -> 0 | G4: =1/((1+$G$1)^($A4-$A$5)) -> 1.07
A5: 2018 | B5: =('Individual Bridge Costs'!F8-'Individual Bridge Costs'!D8)/1000000 -> 0 | C5: =('Individual Bridge Costs'!G8-'Individual Bridge Costs'!E8)/1000000 -> 0 | D5: =B5+C5 -> 0 | E5: =B5*$G5 -> 0 | F5: =C5*$G5 -> 0 | G5: =1/((1+$G$1)^($A5-$A$5)) -> 1
A6: 2019 | B6: =('Individual Bridge Costs'!F9-'Individual Bridge Costs'!D9)/1000000 -> 0.03355600921 | C6: =('Individual Bridge Costs'!G9-'Individual Bridge Costs'!E9)/1000000 -> 0 | D6: =B6+C6 -> 0.03355600921 | E6: 0.03136075627 | F6: 0 | G6: 0.9345794393
A7: 2020 | B7: =('Individual Bridge Costs'!F10-'Individual Bridge Costs'!D10)/1000000 -> 0.2994375333 | C7: =('Individual Bridge Costs'!G10-'Individual Bridge Costs'!E10)/1000000 -> -0.004504 | D7: 0.2949335333 | E7: 0.2615403383 | F7: -0.003933968032 | G7: 0.8734387283
A8: 2021 | B8: =('Individual Bridge Costs'!F11-'Individual Bridge Costs'!D11)/1000000 -> 0.2994375333 | C8: =('Individual Bridge Costs'!G11-'Individual Bridge Costs'!E11)/1000000 -> -0.004504 | D8: 0.2949335333 | E8: 0.2444302227 | F8: -0.003676605638 | G8: 0.8162978769
A9: 2022 | B9: =('Individual Bridge Costs'!F12-'Individual Bridge Costs'!D12)/1000000 -> 0.2994375333 | C9: =('Individual Bridge Costs'!G12-'Individual Bridge Costs'!E12)/1000000 -> -0.004504 | D9: 0.2949335333 | E9: 0.2284394605 | F9: =C9*$G9 -> -0.003436080035 | G9: 0.762895212
A10: 2023 | B10: =('Individual Bridge Costs'!F13-'Individual Bridge Costs'!D13)/1000000 -> 0 | C10: =('Individual Bridge Costs'!G13-'Individual Bridge Costs'!E13)/1000000 -> -0.0040536 | D10: -0.0040536 | E10: 0 | F10: -0.002890160777 | G10: 0.7129861795
A11: 2024 | B11: =('Individual Bridge Costs'!F14-'Individual Bridge Costs'!D14)/1000000 -> 0 | C11: =('Individual Bridge Costs'!G14-'Individual Bridge Costs'!E14)/1000000 -> -0.0040536 | D11: -0.0040536 | E11: 0 | F11: -0.002701084838 | G11: 0.6663422238
A12: 2025 | B12: =('Individual Bridge Costs'!F15-'Individual Bridge Costs'!D15)/1000000 -> 0 | C12: =('Individual Bridge Costs'!G15-'Individual Bridge Costs'!E15)/1000000 -> -0.0040536 | D12: -0.0040536 | E12: 0 | F12: -0.002524378354 | G12: 0.6227497419
A13: 2026 | B13: =('Individual Bridge Costs'!F16-'Individual Bridge Costs'!D16)/1000000 -> 0 | C13: =('Individual Bridge Costs'!G16-'Individual Bridge Costs'!E16)/1000000 -> -0.0040536 | D13: -0.0040536 | E13: 0 | F13: -0.002359232106 | G13: 0.5820091046
A14: 2027 | B14: =('Individual Bridge Costs'!F17-'Individual Bridge Costs'!D17)/1000000 -> 0 | C14: =('Individual Bridge Costs'!G17-'Individual Bridge Costs'!E17)/1000000 -> -0.0040536 | D14: -0.0040536 | E14: 0 | F14: -0.002204889819 | G14: 0.5439337426
A15: 2028 | B15: =('Individual Bridge Costs'!F18-'Individual Bridge Costs'!D18)/1000000 -> 0 | C15: =('Individual Bridge Costs'!G18-'Individual Bridge Costs'!E18)/1000000 -> -0.0040536 | D15: -0.0040536 | E15: 0 | F15: -0.002060644691 | G15: 0.5083492921
A16: 2029 | B16: =('Individual Bridge Costs'!F19-'Individual Bridge Costs'!D19)/1000000 -> 0 | C16: =('Individual Bridge Costs'!G19-'Individual Bridge Costs'!E19)/1000000 -> -0.0040536 | D16: -0.0040536 | E16: 0 | F16: -0.001925836159 | G16: 0.4750927964
A17: 2030 | B17: =('Individual Bridge Costs'!F20-'Individual Bridge Costs'!D20)/1000000 -> 0 | C17: =('Individual Bridge Costs'!G20-'Individual Bridge Costs'!E20)/1000000 -> -0.0040536 | D17: -0.0040536 | E17: 0 | F17: -0.001799846878 | G17: 0.4440119592
A18: 2031 | B18: =('Individual Bridge Costs'!F21-'Individual Bridge Costs'!D21)/1000000 -> 0 | C18: =('Individual Bridge Costs'!G21-'Individual Bridge Costs'!E21)/1000000 -> -0.0040536 | D18: -0.0040536 | E18: 0 | F18: -0.001682099886 | G18: 0.4149644479
A19: 2032 | B19: =('Individual Bridge Costs'!F22-'Individual Bridge Costs'!D22)/1000000 -> 0 | C19: =('Individual Bridge Costs'!G22-'Individual Bridge Costs'!E22)/1000000 -> -0.0040536 | D19: -0.0040536 | E19: 0 | F19: -0.001572055968 | G19: 0.387817241
A20: 2033 | B20: =('Individual Bridge Costs'!F23-'Individual Bridge Costs'!D23)/1000000 -> 0 | C20: =('Individual Bridge Costs'!G23-'Individual Bridge Costs'!E23)/1000000 -> -0.0040536 | D20: -0.0040536 | E20: 0 | F20: -0.001469211185 | G20: 0.3624460196
A21: 2034 | B21: =('Individual Bridge Costs'!F24-'Individual Bridge Costs'!D24)/1000000 -> 0 | C21: =('Individual Bridge Costs'!G24-'Individual Bridge Costs'!E24)/1000000 -> 0.0004504 | D21: 0.0004504 | E21: 0 | F21: 0.0001525660628 | G21: 0.3387345978
A22: 2035 | B22: =('Individual Bridge Costs'!F25-'Individual Bridge Costs'!D25)/1000000 -> 0 | C22: =('Individual Bridge Costs'!G25-'Individual Bridge Costs'!E25)/1000000 -> 0.0004504 | D22: 0.0004504 | E22: 0 | F22: 0.0001425851055 | G22: 0.3165743905
A23: 2036 | B23: =('Individual Bridge Costs'!F26-'Individual Bridge Costs'!D26)/1000000 -> 0 | C23: =('Individual Bridge Costs'!G26-'Individual Bridge Costs'!E26)/1000000 -> 0.0004504 | D23: 0.0004504 | E23: 0 | F23: 0.0001332571079 | G23: 0.2958639163
A24: 2037 | B24: =('Individual Bridge Costs'!F27-'Individual Bridge Costs'!D27)/1000000 -> 0 | C24: =('Individual Bridge Costs'!G27-'Individual Bridge Costs'!E27)/1000000 -> 0.0004504 | D24: 0.0004504 | E24: 0 | F24: 0.0001245393532 | G24: 0.276508333
A25: 2038 | B25: =('Individual Bridge Costs'!F28-'Individual Bridge Costs'!D28)/1000000 -> 0 | C25: =('Individual Bridge Costs'!G28-'Individual Bridge Costs'!E28)/1000000 -> 0.0004504 | D25: 0.0004504 | E25: 0 | F25: 0.0001163919189 | G25: 0.2584190028
A26: 2039 | B26: =('Individual Bridge Costs'!F29-'Individual Bridge Costs'!D29)/1000000 -> 0 | C26: =('Individual Bridge Costs'!G29-'Individual Bridge Costs'!E29)/1000000 -> 0.0004504 | D26: 0.0004504 | E26: 0 | F26: 0.0001087774943 | G26: 0.2415130867
A27: 2040 | B27: =('Individual Bridge Costs'!F30-'Individual Bridge Costs'!D30)/1000000 -> 0 | C27: =('Individual Bridge Costs'!G30-'Individual Bridge Costs'!E30)/1000000 -> 0.0004504 | D27: 0.0004504 | E27: 0 | F27: 0.0001016612096 | G27: 0.2257131652
A28: 2041 | B28: =('Individual Bridge Costs'!F31-'Individual Bridge Costs'!D31)/1000000 -> 0 | C28: =('Individual Bridge Costs'!G31-'Individual Bridge Costs'!E31)/1000000 -> 0.0004504 | D28: 0.0004504 | E28: 0 | F28: 9.501047626e-05 | G28: 0.2109468833
A29: 2042 | B29: =('Individual Bridge Costs'!F32-'Individual Bridge Costs'!D32)/1000000 -> 0 | C29: =('Individual Bridge Costs'!G32-'Individual Bridge Costs'!E32)/1000000 -> 0.0004504 | D29: =B29+C29 -> 0.0004504 | E29: 0 | F29: 8.879483762e-05 | G29: 0.1971466199
A30: 2043 | B30: =('Individual Bridge Costs'!F33-'Individual Bridge Costs'!D33)/1000000 -> 0 | C30: =('Individual Bridge Costs'!G33-'Individual Bridge Costs'!E33)/1000000 -> 0.0004504 | D30: 0.0004504 | E30: 0 | F30: 8.298582956e-05 | G30: 0.1842491775
A31: 2044 | B31: =('Individual Bridge Costs'!F34-'Individual Bridge Costs'!D34)/1000000 -> 0 | C31: =('Individual Bridge Costs'!G34-'Individual Bridge Costs'!E34)/1000000 -> 0.0004504 | D31: 0.0004504 | E31: 0 | F31: 7.755685005e-05 | G31: 0.172195493
A32: 2045 | B32: =('Individual Bridge Costs'!F35-'Individual Bridge Costs'!D35)/1000000 -> 0 | C32: =('Individual Bridge Costs'!G35-'Individual Bridge Costs'!E35)/1000000 -> 0.0004504 | D32: 0.0004504 | E32: 0 | F32: 7.248303743e-05 | G32: 0.1609303673
A33: 2046 | B33: =('Individual Bridge Costs'!F36-'Individual Bridge Costs'!D36)/1000000 -> 0 | C33: =('Individual Bridge Costs'!G36-'Individual Bridge Costs'!E36)/1000000 -> 0.0004504 | D33: 0.0004504 | E33: 0 | F33: 6.774115648e-05 | G33: 0.1504022124
A34: 2047 | B34: =('Individual Bridge Costs'!F37-'Individual Bridge Costs'!D37)/1000000 -> 0 | C34: =('Individual Bridge Costs'!G37-'Individual Bridge Costs'!E37)/1000000 -> 0.0004504 | D34: 0.0004504 | E34: 0 | F34: 6.330949204e-05 | G34: 0.1405628154
A35: 2048 | B35: =('Individual Bridge Costs'!F38-'Individual Bridge Costs'!D38)/1000000 -> 0 | C35: =('Individual Bridge Costs'!G38-'Individual Bridge Costs'!E38)/1000000 -> 0.0004504 | D35: 0.0004504 | E35: 0 | F35: 5.916774957e-05 | G35: 0.1313671172
A36: 2049 | B36: =('Individual Bridge Costs'!F39-'Individual Bridge Costs'!D39)/1000000 -> 0 | C36: =('Individual Bridge Costs'!G39-'Individual Bridge Costs'!E39)/1000000 -> 0.0004504 | D36: 0.0004504 | E36: 0 | F36: 5.529696221e-05 | G36: 0.1227730067
A37: 2050 | B37: =('Individual Bridge Costs'!F40-'Individual Bridge Costs'!D40)/1000000 -> 0 | C37: =('Individual Bridge Costs'!G40-'Individual Bridge Costs'!E40)/1000000 -> 0.0004504 | D37: 0.0004504 | E37: 0 | F37: 5.167940394e-05 | G37: 0.1147411277 | I37: ='Individual Bridge Costs'!H40 -> 0 | J37: =(I37/1000000)*$G37 -> 0
A38: Total | B38: =SUM(B4:B37) -> 1.139241458 | C38: =SUM(C4:C37) -> -0.0504448 | D38: =SUM(D4:D37) -> 1.088796658 | E38: =SUM(E5:E37) -> 0.7657707778 | F38: =SUM(F5:F37) -> -0.03264229032 | I38: =SUM(I5:I37) -> 0 | J38: =SUM(J5:J37) -> 0

Sheet Traffic Group Benefits
D1: Traffic Group | E1: Yrs to 20T Post | F1: Yrs to Closed
C2: Choose from dropdown: | D2: 3 | E2: =INDEX('Traffic Groups'!$N$2:$N$6,MATCH('Traffic Group Benefits'!$D$2,'Traffic Groups'!$A$2:$A$6,0)) -> 5 | F2: =INDEX('Traffic Groups'!$O$2:$O$6,MATCH('Traffic Group Benefits'!$D$2,'Traffic Groups'!$A$2:$A$6,0)) -> 15
D4: Net difference between project and base (if new bridge is not open , no difference): | N4: Car | O4: Truck | P4: Car | Q4: Truck | R4: Truck | S4: All | T4: Car | U4: Truck
A5: Construction Status - Build | B5: Bridge Status - Base | C5: Year | D5: Bridge AADT | E5: Diverted Car Trips | F5: Diverted Truck Trips | G5: Diverted Car VMT | H5: Diverted Truck VMT | I5: Diverted Car VHT | J5: Diverted Truck VHT | K5: Fatalities | L5: Personal Injury | M5: Property Damage | N5: Veh. Operating Costs | O5: Veh. Operating Costs | P5: Value of Personal Time | Q5: Value of Time Crew Time | R5: Shipper Logistics Costs | S5: Safety | T5: Emissions | U5: Emissions
A6: =IF(C6<='Bridge List'!$M$7,"Old bridge","New bridge open") -> Old bridge | B6: =IF(AND($E$2=$F$2,C6-$C$8=$E$2),"Posted & Closed",IF(C6-$C$8=$E$2,"Posted",IF(C6-$C$8=$F$2,"Closed",""))) ->  | C6: 2016 | D6: N/A | E6: N/A | F6: N/A | G6: N/A | H6: N/A | I6: N/A | J6: N/A | K6: N/A | L6: N/A | M6: N/A | N6: N/A | O6: N/A | P6: N/A | Q6: N/A | R6: N/A | S6: N/A | T6: N/A | U6: N/A
A7: =IF(C7<='Bridge List'!$M$7,"Old bridge","New bridge open") -> Old bridge | C7: 2017 | D7: N/A | E7: N/A | F7: N/A | G7: N/A | H7: N/A | I7: N/A | J7: N/A | K7: N/A | L7: N/A | M7: N/A | N7: N/A | O7: N/A | P7: N/A | Q7: N/A | R7: N/A | S7: N/A | T7: N/A | U7: N/A
A8: =IF(C8<='Bridge List'!$M$7,"Old bridge","New bridge open") -> Old bridge | C8: 2018 | D8: =INDEX(TDC!$E$3:$E$7,MATCH('Traffic Group Benefits'!$D$2,TDC!$B$3:$B$7,0)) -> 2190000 | E8: =IF(C8<='Bridge List'!$M$7,0,IF(C8-$C$8>=$F$2,D8*$C$46,0)) -> 0 | F8: =IF(C8<='Bridge List'!$M$7,0,IF(C8-$C$8>=$E$2,D8*$C$47,0)) -> 0 | G8: =E8*$C$48 -> 0 | H8: =F8*$C$48 -> 0 | I8: =G8/$C$49 -> 0 | J8: =H8/$C$49 -> 0 | K8: =(($G8+$H8)/$C$56)*$C$50 -> 0 | L8: =(($G8+$H8)/$C$56)*$C$51 -> 0 | M8: =(($G8+$H8)/$C$56)*$C$52 -> 0 | N8: =G8*'Fixed Factors'!$D$3+G8*'Fixed Factors'!$D$7*'Fixed Factors'!$I$8 -> 0 | O8: =H8*'Fixed Factors'!$D$4+H8*'Fixed Factors'!$D$8*'Fixed Factors'!$I$7 -> 0 | P8: =I8*$C$57*$C$59 -> 0 | Q8: =J8*$C$58*$C$60 -> 0 | R8: =J8*'Shipper-Logistics Costs'!$I$5*'Shipper-Logistics Costs'!$I$7*SUMPRODUCT('Shipper-Logistics Costs'!$D$6:$D$48,'Shipper-Logistics Costs'!$N$6:$N$48) -> 0 | S8: =K8*$C$53+L8*$C$54+M8*$C$55 -> 0 | T8: =G8*'Fixed Factors'!$D$26 -> 0 | U8: =H8*'Fixed Factors'!$D$27 -> 0
A9: =IF(C9<='Bridge List'!$M$7,"Old bridge","New bridge open") -> Old bridge | C9: 2019 | D9: =D8+D8*$C$45 -> 2209710 | E9: =IF(C9<='Bridge List'!$M$7,0,IF(C9-$C$8>=$F$2,D9*$C$46,0)) -> 0 | F9: =IF(C9<='Bridge List'!$M$7,0,IF(C9-$C$8>=$E$2,D9*$C$47,0)) -> 0 | G9: =E9*$C$48 -> 0 | H9: 0 | I9: 0 | J9: 0 | K9: =(($G9+$H9)/$C$56)*$C$50 -> 0 | L9: =(($G9+$H9)/$C$56)*$C$51 -> 0 | M9: =(($G9+$H9)/$C$56)*$C$52 -> 0 | N9: =G9*'Fixed Factors'!$D$3+G9*'Fixed Factors'!$D$7*'Fixed Factors'!$I$8 -> 0 | O9: =H9*'Fixed Factors'!$D$4+H9*'Fixed Factors'!$D$8*'Fixed Factors'!$I$7 -> 0 | P9: 0 | Q9: =J9*$C$58*$C$60 -> 0 | R9: =J9*'Shipper-Logistics Costs'!$I$5*'Shipper-Logistics Costs'!$I$7*SUMPRODUCT('Shipper-Logistics Costs'!$D$6:$D$48,'Shipper-Logistics Costs'!$N$6:$N$48) -> 0 | S9: =K9*$C$53+L9*$C$54+M9*$C$55 -> 0 | T9: =G9*'Fixed Factors'!$D$26 -> 0 | U9: =H9*'Fixed Factors'!$D$27 -> 0
A10: =IF(C10<='Bridge List'!$M$7,"Old bridge","New bridge open") -> Old bridge | C10: 2020 | D10: =D9+D9*$C$45 -> 2229597.39 | E10: =IF(C10<='Bridge List'!$M$7,0,IF(C10-$C$8>=$F$2,D10*$C$46,0)) -> 0 | F10: =IF(C10<='Bridge List'!$M$7,0,IF(C10-$C$8>=$E$2,D10*$C$47,0)) -> 0 | G10: 0 | H10: 0 | I10: 0 | J10: 0 | K10: 0 | L10: 0 | M10: 0 | N10: =G10*'Fixed Factors'!$D$3+G10*'Fixed Factors'!$D$7*'Fixed Factors'!$I$8 -> 0 | O10: =H10*'Fixed Factors'!$D$4+H10*'Fixed Factors'!$D$8*'Fixed Factors'!$I$7 -> 0 | P10: 0 | Q10: 0 | R10: =J10*'Shipper-Logistics Costs'!$I$5*'Shipper-Logistics Costs'!$I$7*SUMPRODUCT('Shipper-Logistics Costs'!$D$6:$D$48,'Shipper-Logistics Costs'!$N$6:$N$48) -> 0 | S10: 0 | T10: =G10*'Fixed Factors'!$D$26 -> 0 | U10: =H10*'Fixed Factors'!$D$27 -> 0
A11: =IF(C11<='Bridge List'!$M$7,"Old bridge","New bridge open") -> Old bridge | C11: 2021 | D11: 2249663.767 | E11: =IF(C11<='Bridge List'!$M$7,0,IF(C11-$C$8>=$F$2,D11*$C$46,0)) -> 0 | F11: =IF(C11<='Bridge List'!$M$7,0,IF(C11-$C$8>=$E$2,D11*$C$47,0)) -> 0 | G11: 0 | H11: 0 | I11: 0 | J11: 0 | K11: 0 | L11: 0 | M11: 0 | N11: =G11*'Fixed Factors'!$D$3+G11*'Fixed Factors'!$D$7*'Fixed Factors'!$I$8 -> 0 | O11: =H11*'Fixed Factors'!$D$4+H11*'Fixed Factors'!$D$8*'Fixed Factors'!$I$7 -> 0 | P11: 0 | Q11: 0 | R11: =J11*'Shipper-Logistics Costs'!$I$5*'Shipper-Logistics Costs'!$I$7*SUMPRODUCT('Shipper-Logistics Costs'!$D$6:$D$48,'Shipper-Logistics Costs'!$N$6:$N$48) -> 0 | S11: 0 | T11: =G11*'Fixed Factors'!$D$26 -> 0 | U11: =H11*'Fixed Factors'!$D$27 -> 0
A12: =IF(C12<='Bridge List'!$M$7,"Old bridge","New bridge open") -> Old bridge | C12: 2022 | D12: 2269910.74 | E12: =IF(C12<='Bridge List'!$M$7,0,IF(C12-$C$8>=$F$2,D12*$C$46,0)) -> 0 | F12: =IF(C12<='Bridge List'!$M$7,0,IF(C12-$C$8>=$E$2,D12*$C$47,0)) -> 0 | G12: 0 | H12: 0 | I12: 0 | J12: 0 | K12: 0 | L12: 0 | M12: 0 | N12: =G12*'Fixed Factors'!$D$3+G12*'Fixed Factors'!$D$7*'Fixed Factors'!$I$8 -> 0 | O12: =H12*'Fixed Factors'!$D$4+H12*'Fixed Factors'!$D$8*'Fixed Factors'!$I$7 -> 0 | P12: 0 | Q12: 0 | R12: =J12*'Shipper-Logistics Costs'!$I$5*'Shipper-Logistics Costs'!$I$7*SUMPRODUCT('Shipper-Logistics Costs'!$D$6:$D$48,'Shipper-Logistics Costs'!$N$6:$N$48) -> 0 | S12: 0 | T12: =G12*'Fixed Factors'!$D$26 -> 0 | U12: =H12*'Fixed Factors'!$D$27 -> 0
A13: =IF(C13<='Bridge List'!$M$7,"Old bridge","New bridge open") -> New bridge open | B13: Posted | C13: 2023 | D13: 2290339.937 | E13: =IF(C13<='Bridge List'!$M$7,0,IF(C13-$C$8>=$F$2,D13*$C$46,0)) -> 0 | F13: =IF(C13<='Bridge List'!$M$7,0,IF(C13-$C$8>=$E$2,D13*$C$47,0)) -> 274840.7924 | G13: 0 | H13: 852006.4566 | I13: 0 | J13: 18933.47681 | K13: 0.02538979241 | L13: 0.2475078756 | M13: 0.8664053657 | N13: =G13*'Fixed Factors'!$D$3+G13*'Fixed Factors'!$D$7*'Fixed Factors'!$I$8 -> 0 | O13: =H13*'Fixed Factors'!$D$4+H13*'Fixed Factors'!$D$8*'Fixed Factors'!$I$7 -> 879057.6616 | P13: 0 | Q13: 541497.4369 | R13: =J13*'Shipper-Logistics Costs'!$I$5*'Shipper-Logistics Costs'!$I$7*SUMPRODUCT('Shipper-Logistics Costs'!$D$6:$D$48,'Shipper-Logistics Costs'!$N$6:$N$48) -> 518801.8576 | S13: 290557.3135 | T13: =G13*'Fixed Factors'!$D$26 -> 0 | U13: =H13*'Fixed Factors'!$D$27 -> 129667.7646
A14: =IF(C14<='Bridge List'!$M$7,"Old bridge","New bridge open") -> New bridge open | C14: 2024 | D14: 2310952.997 | E14: =IF(C14<='Bridge List'!$M$7,0,IF(C14-$C$8>=$F$2,D14*$C$46,0)) -> 0 | F14: =IF(C14<='Bridge List'!$M$7,0,IF(C14-$C$8>=$E$2,D14*$C$47,0)) -> 277314.3596 | G14: 0 | H14: 859674.5147 | I14: 0 | J14: 19103.8781 | K14: 0.02561830054 | L14: 0.2497354465 | M14: 0.874203014 | N14: =G14*'Fixed Factors'!$D$3+G14*'Fixed Factors'!$D$7*'Fixed Factors'!$I$8 -> 0 | O14: =H14*'Fixed Factors'!$D$4+H14*'Fixed Factors'!$D$8*'Fixed Factors'!$I$7 -> 886969.1805 | P14: 0 | Q14: 546370.9138 | R14: =J14*'Shipper-Logistics Costs'!$I$5*'Shipper-Logistics Costs'!$I$7*SUMPRODUCT('Shipper-Logistics Costs'!$D$6:$D$48,'Shipper-Logistics Costs'!$N$6:$N$48) -> 523471.0743 | S14: 293172.3293 | T14: =G14*'Fixed Factors'!$D$26 -> 0 | U14: =H14*'Fixed Factors'!$D$27 -> 130834.7745
A15: =IF(C15<='Bridge List'!$M$7,"Old bridge","New bridge open") -> New bridge open | C15: 2025 | D15: 2331751.573 | E15: =IF(C15<='Bridge List'!$M$7,0,IF(C15-$C$8>=$F$2,D15*$C$46,0)) -> 0 | F15: =IF(C15<='Bridge List'!$M$7,0,IF(C15-$C$8>=$E$2,D15*$C$47,0)) -> 279810.1888 | G15: 0 | H15: 867411.5853 | I15: 0 | J15: 19275.81301 | K15: 0.02584886524 | L15: 0.2519830655 | M15: 0.8820708411 | N15: =G15*'Fixed Factors'!$D$3+G15*'Fixed Factors'!$D$7*'Fixed Factors'!$I$8 -> 0 | O15: =H15*'Fixed Factors'!$D$4+H15*'Fixed Factors'!$D$8*'Fixed Factors'!$I$7 -> 894951.9032 | P15: 0 | Q15: 551288.252 | R15: =J15*'Shipper-Logistics Costs'!$I$5*'Shipper-Logistics Costs'!$I$7*SUMPRODUCT('Shipper-Logistics Costs'!$D$6:$D$48,'Shipper-Logistics Costs'!$N$6:$N$48) -> 528182.3139 | S15: 295810.8803 | T15: =G15*'Fixed Factors'!$D$26 -> 0 | U15: =H15*'Fixed Factors'!$D$27 -> 132012.2875
A16: =IF(C16<='Bridge List'!$M$7,"Old bridge","New bridge open") -> New bridge open | C16: 2026 | D16: 2352737.338 | E16: =IF(C16<='Bridge List'!$M$7,0,IF(C16-$C$8>=$F$2,D16*$C$46,0)) -> 0 | F16: =IF(C16<='Bridge List'!$M$7,0,IF(C16-$C$8>=$E$2,D16*$C$47,0)) -> 282328.4805 | G16: 0 | H16: 875218.2896 | I16: 0 | J16: 19449.29532 | K16: 0.02608150503 | L16: 0.2542509131 | M16: 0.8900094787 | N16: =G16*'Fixed Factors'!$D$3+G16*'Fixed Factors'!$D$7*'Fixed Factors'!$I$8 -> 0 | O16: =H16*'Fixed Factors'!$D$4+H16*'Fixed Factors'!$D$8*'Fixed Factors'!$I$7 -> 903006.4703 | P16: 0 | Q16: 556249.8463 | R16: =J16*'Shipper-Logistics Costs'!$I$5*'Shipper-Logistics Costs'!$I$7*SUMPRODUCT('Shipper-Logistics Costs'!$D$6:$D$48,'Shipper-Logistics Costs'!$N$6:$N$48) -> 532935.9548 | S16: 298473.1782 | T16: =G16*'Fixed Factors'!$D$26 -> 0 | U16: =H16*'Fixed Factors'!$D$27 -> 133200.3981
A17: =IF(C17<='Bridge List'!$M$7,"Old bridge","New bridge open") -> New bridge open | C17: 2027 | D17: 2373911.974 | E17: =IF(C17<='Bridge List'!$M$7,0,IF(C17-$C$8>=$F$2,D17*$C$46,0)) -> 0 | F17: =IF(C17<='Bridge List'!$M$7,0,IF(C17-$C$8>=$E$2,D17*$C$47,0)) -> 284869.4368 | G17: 0 | H17: 883095.2542 | I17: 0 | J17: 19624.33898 | K17: 0.02631623858 | L17: 0.2565391713 | M17: 0.898019564 | N17: =G17*'Fixed Factors'!$D$3+G17*'Fixed Factors'!$D$7*'Fixed Factors'!$I$8 -> 0 | O17: =H17*'Fixed Factors'!$D$4+H17*'Fixed Factors'!$D$8*'Fixed Factors'!$I$7 -> 911133.5285 | P17: 0 | Q17: 561256.0949 | R17: =J17*'Shipper-Logistics Costs'!$I$5*'Shipper-Logistics Costs'!$I$7*SUMPRODUCT('Shipper-Logistics Costs'!$D$6:$D$48,'Shipper-Logistics Costs'!$N$6:$N$48) -> 537732.3784 | S17: 301159.4368 | T17: =G17*'Fixed Factors'!$D$26 -> 0 | U17: =H17*'Fixed Factors'!$D$27 -> 134399.2017
A18: =IF(C18<='Bridge List'!$M$7,"Old bridge","New bridge open") -> New bridge open | C18: 2028 | D18: =D17+D17*$C$45 -> 2395277.181 | E18: =IF(C18<='Bridge List'!$M$7,0,IF(C18-$C$8>=$F$2,D18*$C$46,0)) -> 0 | F18: =IF(C18<='Bridge List'!$M$7,0,IF(C18-$C$8>=$E$2,D18*$C$47,0)) -> 287433.2618 | G18: 0 | H18: 891043.1115 | I18: 0 | J18: 19800.95803 | K18: 0.02655308472 | L18: 0.2588480239 | M18: 0.9061017401 | N18: =G18*'Fixed Factors'!$D$3+G18*'Fixed Factors'!$D$7*'Fixed Factors'!$I$8 -> 0 | O18: =H18*'Fixed Factors'!$D$4+H18*'Fixed Factors'!$D$8*'Fixed Factors'!$I$7 -> 919333.7303 | P18: 0 | Q18: 566307.3998 | R18: =J18*'Shipper-Logistics Costs'!$I$5*'Shipper-Logistics Costs'!$I$7*SUMPRODUCT('Shipper-Logistics Costs'!$D$6:$D$48,'Shipper-Logistics Costs'!$N$6:$N$48) -> 542571.9698 | S18: 303869.8717 | T18: =G18*'Fixed Factors'!$D$26 -> 0 | U18: =H18*'Fixed Factors'!$D$27 -> 135608.7945
A19: =IF(C19<='Bridge List'!$M$7,"Old bridge","New bridge open") -> New bridge open | C19: 2029 | D19: 2416834.676 | E19: =IF(C19<='Bridge List'!$M$7,0,IF(C19-$C$8>=$F$2,D19*$C$46,0)) -> 0 | F19: =IF(C19<='Bridge List'!$M$7,0,IF(C19-$C$8>=$E$2,D19*$C$47,0)) -> 290020.1611 | G19: 0 | H19: 899062.4995 | I19: 0 | J19: 19979.16666 | K19: 0.02679206249 | L19: 0.2611776561 | M19: 0.9142566557 | N19: =G19*'Fixed Factors'!$D$3+G19*'Fixed Factors'!$D$7*'Fixed Factors'!$I$8 -> 0 | O19: =H19*'Fixed Factors'!$D$4+H19*'Fixed Factors'!$D$8*'Fixed Factors'!$I$7 -> 927607.7339 | P19: 0 | Q19: 571404.1663 | R19: =J19*'Shipper-Logistics Costs'!$I$5*'Shipper-Logistics Costs'!$I$7*SUMPRODUCT('Shipper-Logistics Costs'!$D$6:$D$48,'Shipper-Logistics Costs'!$N$6:$N$48) -> 547455.1175 | S19: 306604.7006 | T19: =G19*'Fixed Factors'!$D$26 -> 0 | U19: =H19*'Fixed Factors'!$D$27 -> 136829.2736
A20: =IF(C20<='Bridge List'!$M$7,"Old bridge","New bridge open") -> New bridge open | C20: 2030 | D20: 2438586.188 | E20: =IF(C20<='Bridge List'!$M$7,0,IF(C20-$C$8>=$F$2,D20*$C$46,0)) -> 0 | F20: =IF(C20<='Bridge List'!$M$7,0,IF(C20-$C$8>=$E$2,D20*$C$47,0)) -> 292630.3426 | G20: 0 | H20: 907154.062 | I20: 0 | J20: 20158.97916 | K20: 0.02703319105 | L20: 0.263528255 | M20: 0.9224849656 | N20: =G20*'Fixed Factors'!$D$3+G20*'Fixed Factors'!$D$7*'Fixed Factors'!$I$8 -> 0 | O20: =H20*'Fixed Factors'!$D$4+H20*'Fixed Factors'!$D$8*'Fixed Factors'!$I$7 -> 935956.2035 | P20: 0 | Q20: 576546.8038 | R20: =J20*'Shipper-Logistics Costs'!$I$5*'Shipper-Logistics Costs'!$I$7*SUMPRODUCT('Shipper-Logistics Costs'!$D$6:$D$48,'Shipper-Logistics Costs'!$N$6:$N$48) -> 552382.2136 | S20: 309364.1429 | T20: =G20*'Fixed Factors'!$D$26 -> 0 | U20: =H20*'Fixed Factors'!$D$27 -> 138060.7371
A21: =IF(C21<='Bridge List'!$M$7,"Old bridge","New bridge open") -> New bridge open | C21: 2031 | D21: 2460533.464 | E21: =IF(C21<='Bridge List'!$M$7,0,IF(C21-$C$8>=$F$2,D21*$C$46,0)) -> 0 | F21: =IF(C21<='Bridge List'!$M$7,0,IF(C21-$C$8>=$E$2,D21*$C$47,0)) -> 295264.0157 | G21: 0 | H21: 915318.4486 | I21: 0 | J21: 20340.40997 | K21: 0.02727648977 | L21: 0.2659000093 | M21: 0.9307873303 | N21: =G21*'Fixed Factors'!$D$3+G21*'Fixed Factors'!$D$7*'Fixed Factors'!$I$8 -> 0 | O21: =H21*'Fixed Factors'!$D$4+H21*'Fixed Factors'!$D$8*'Fixed Factors'!$I$7 -> 944379.8093 | P21: 0 | Q21: 581735.7251 | R21: =J21*'Shipper-Logistics Costs'!$I$5*'Shipper-Logistics Costs'!$I$7*SUMPRODUCT('Shipper-Logistics Costs'!$D$6:$D$48,'Shipper-Logistics Costs'!$N$6:$N$48) -> 557353.6535 | S21: 312148.4202 | T21: =G21*'Fixed Factors'!$D$26 -> 0 | U21: =H21*'Fixed Factors'!$D$27 -> 139303.2837
A22: =IF(C22<='Bridge List'!$M$7,"Old bridge","New bridge open") -> New bridge open | C22: 2032 | D22: 2482678.265 | E22: =IF(C22<='Bridge List'!$M$7,0,IF(C22-$C$8>=$F$2,D22*$C$46,0)) -> 0 | F22: =IF(C22<='Bridge List'!$M$7,0,IF(C22-$C$8>=$E$2,D22*$C$47,0)) -> 297921.3918 | G22: 0 | H22: 923556.3146 | I22: 0 | J22: 20523.47366 | K22: 0.02752197817 | L22: 0.2682931094 | M22: 0.9391644163 | N22: =G22*'Fixed Factors'!$D$3+G22*'Fixed Factors'!$D$7*'Fixed Factors'!$I$8 -> 0 | O22: =H22*'Fixed Factors'!$D$4+H22*'Fixed Factors'!$D$8*'Fixed Factors'!$I$7 -> 952879.2276 | P22: 0 | Q22: 586971.3466 | R22: =J22*'Shipper-Logistics Costs'!$I$5*'Shipper-Logistics Costs'!$I$7*SUMPRODUCT('Shipper-Logistics Costs'!$D$6:$D$48,'Shipper-Logistics Costs'!$N$6:$N$48) -> 562369.8364 | S22: 314957.7559 | T22: =G22*'Fixed Factors'!$D$26 -> 0 | U22: =H22*'Fixed Factors'!$D$27 -> 140557.0133
A23: =IF(C23<='Bridge List'!$M$7,"Old bridge","New bridge open") -> New bridge open | B23: Closed | C23: 2033 | D23: 2505022.369 | E23: =IF(C23<='Bridge List'!$M$7,0,IF(C23-$C$8>=$F$2,D23*$C$46,0)) -> 2204419.685 | F23: =IF(C23<='Bridge List'!$M$7,0,IF(C23-$C$8>=$E$2,D23*$C$47,0)) -> 300602.6843 | G23: 6833701.024 | H23: 931868.3214 | I23: 151860.0227 | J23: 20708.18492 | K23: 0.2314139665 | L23: 2.255897895 | M23: 7.896807467 | N23: =G23*'Fixed Factors'!$D$3+G23*'Fixed Factors'!$D$7*'Fixed Factors'!$I$8 -> 2725963.334 | O23: =H23*'Fixed Factors'!$D$4+H23*'Fixed Factors'!$D$8*'Fixed Factors'!$I$7 -> 961455.1406 | P23: 2997413.129 | Q23: 592254.0887 | R23: =J23*'Shipper-Logistics Costs'!$I$5*'Shipper-Logistics Costs'!$I$7*SUMPRODUCT('Shipper-Logistics Costs'!$D$6:$D$48,'Shipper-Logistics Costs'!$N$6:$N$48) -> 567431.1649 | S23: 2648269.798 | T23: =G23*'Fixed Factors'!$D$26 -> 65027.03205 | U23: =H23*'Fixed Factors'!$D$27 -> 141822.0264
A24: =IF(C24<='Bridge List'!$M$7,"Old bridge","New bridge open") -> New bridge open | C24: 2034 | D24: 2527567.571 | E24: =IF(C24<='Bridge List'!$M$7,0,IF(C24-$C$8>=$F$2,D24*$C$46,0)) -> 2224259.462 | F24: =IF(C24<='Bridge List'!$M$7,0,IF(C24-$C$8>=$E$2,D24*$C$47,0)) -> 303308.1085 | G24: 6895204.333 | H24: 940255.1363 | I24: 153226.763 | J24: 20894.55858 | K24: 0.2334966922 | L24: 2.276200976 | M24: 7.967878734 | N24: =G24*'Fixed Factors'!$D$3+G24*'Fixed Factors'!$D$7*'Fixed Factors'!$I$8 -> 2750497.004 | O24: =H24*'Fixed Factors'!$D$4+H24*'Fixed Factors'!$D$8*'Fixed Factors'!$I$7 -> 970108.2369 | P24: 3024389.847 | Q24: 597584.3755 | R24: =J24*'Shipper-Logistics Costs'!$I$5*'Shipper-Logistics Costs'!$I$7*SUMPRODUCT('Shipper-Logistics Costs'!$D$6:$D$48,'Shipper-Logistics Costs'!$N$6:$N$48) -> 572538.0454 | S24: 2672104.226 | T24: =G24*'Fixed Factors'!$D$26 -> 65612.27534 | U24: =H24*'Fixed Factors'!$D$27 -> 143098.4246
A25: =IF(C25<='Bridge List'!$M$7,"Old bridge","New bridge open") -> New bridge open | C25: 2035 | D25: 2550315.679 | E25: =IF(C25<='Bridge List'!$M$7,0,IF(C25-$C$8>=$F$2,D25*$C$46,0)) -> 2244277.797 | F25: =IF(C25<='Bridge List'!$M$7,0,IF(C25-$C$8>=$E$2,D25*$C$47,0)) -> 306037.8815 | G25: 6957261.172 | H25: 948717.4325 | I25: 154605.8038 | J25: 21082.60961 | K25: 0.2355981624 | L25: 2.296686785 | M25: 8.039589643 | N25: =G25*'Fixed Factors'!$D$3+G25*'Fixed Factors'!$D$7*'Fixed Factors'!$I$8 -> 2775251.477 | O25: =H25*'Fixed Factors'!$D$4+H25*'Fixed Factors'!$D$8*'Fixed Factors'!$I$7 -> 978839.211 | P25: 3051609.356 | Q25: 602962.6349 | R25: =J25*'Shipper-Logistics Costs'!$I$5*'Shipper-Logistics Costs'!$I$7*SUMPRODUCT('Shipper-Logistics Costs'!$D$6:$D$48,'Shipper-Logistics Costs'!$N$6:$N$48) -> 577690.8878 | S25: 2696153.164 | T25: =G25*'Fixed Factors'!$D$26 -> 66202.78582 | U25: =H25*'Fixed Factors'!$D$27 -> 144386.3104
A26: =IF(C26<='Bridge List'!$M$7,"Old bridge","New bridge open") -> New bridge open | C26: 2036 | D26: 2573268.52 | E26: =IF(C26<='Bridge List'!$M$7,0,IF(C26-$C$8>=$F$2,D26*$C$46,0)) -> 2264476.298 | F26: =IF(C26<='Bridge List'!$M$7,0,IF(C26-$C$8>=$E$2,D26*$C$47,0)) -> 308792.2224 | G26: 7019876.523 | H26: 957255.8894 | I26: 155997.2561 | J26: 21272.3531 | K26: 0.2377185459 | L26: 2.317356966 | M26: 8.11194595 | N26: =G26*'Fixed Factors'!$D$3+G26*'Fixed Factors'!$D$7*'Fixed Factors'!$I$8 -> 2800228.74 | O26: =H26*'Fixed Factors'!$D$4+H26*'Fixed Factors'!$D$8*'Fixed Factors'!$I$7 -> 987648.7639 | P26: 3079073.84 | Q26: 608389.2986 | R26: =J26*'Shipper-Logistics Costs'!$I$5*'Shipper-Logistics Costs'!$I$7*SUMPRODUCT('Shipper-Logistics Costs'!$D$6:$D$48,'Shipper-Logistics Costs'!$N$6:$N$48) -> 582890.1058 | S26: 2720418.543 | T26: =G26*'Fixed Factors'!$D$26 -> 66798.61089 | U26: =H26*'Fixed Factors'!$D$27 -> 145685.7872
A27: =IF(C27<='Bridge List'!$M$7,"Old bridge","New bridge open") -> New bridge open | C27: 2037 | D27: 2596427.937 | E27: =IF(C27<='Bridge List'!$M$7,0,IF(C27-$C$8>=$F$2,D27*$C$46,0)) -> 2284856.584 | F27: =IF(C27<='Bridge List'!$M$7,0,IF(C27-$C$8>=$E$2,D27*$C$47,0)) -> 311571.3524 | G27: 7083055.411 | H27: 965871.1924 | I27: 157401.2314 | J27: 21463.80428 | K27: 0.2398580128 | L27: 2.338213178 | M27: 8.184953463 | N27: =G27*'Fixed Factors'!$D$3+G27*'Fixed Factors'!$D$7*'Fixed Factors'!$I$8 -> 2825430.799 | O27: =H27*'Fixed Factors'!$D$4+H27*'Fixed Factors'!$D$8*'Fixed Factors'!$I$7 -> 996537.6028 | P27: 3106785.505 | Q27: 613864.8023 | R27: =J27*'Shipper-Logistics Costs'!$I$5*'Shipper-Logistics Costs'!$I$7*SUMPRODUCT('Shipper-Logistics Costs'!$D$6:$D$48,'Shipper-Logistics Costs'!$N$6:$N$48) -> 588136.1167 | S27: 2744902.309 | T27: =G27*'Fixed Factors'!$D$26 -> 67399.79839 | U27: =H27*'Fixed Factors'!$D$27 -> 146996.9593
A28: =IF(C28<='Bridge List'!$M$7,"Old bridge","New bridge open") -> New bridge open | C28: 2038 | D28: 2619795.788 | E28: =IF(C28<='Bridge List'!$M$7,0,IF(C28-$C$8>=$F$2,D28*$C$46,0)) -> 2305420.294 | F28: =IF(C28<='Bridge List'!$M$7,0,IF(C28-$C$8>=$E$2,D28*$C$47,0)) -> 314375.4946 | G28: 7146802.91 | H28: 974564.0332 | I28: 158817.8424 | J28: 21656.97851 | K28: 0.2420167349 | L28: 2.359257097 | M28: 8.258618044 | N28: =G28*'Fixed Factors'!$D$3+G28*'Fixed Factors'!$D$7*'Fixed Factors'!$I$8 -> 2850859.676 | O28: =H28*'Fixed Factors'!$D$4+H28*'Fixed Factors'!$D$8*'Fixed Factors'!$I$7 -> 1005506.441 | P28: 3134746.574 | Q28: 619389.5855 | R28: =J28*'Shipper-Logistics Costs'!$I$5*'Shipper-Logistics Costs'!$I$7*SUMPRODUCT('Shipper-Logistics Costs'!$D$6:$D$48,'Shipper-Logistics Costs'!$N$6:$N$48) -> 593429.3418 | S28: 2769606.43 | T28: =G28*'Fixed Factors'!$D$26 -> 68006.39658 | U28: =H28*'Fixed Factors'!$D$27 -> 148319.932
A29: =IF(C29<='Bridge List'!$M$7,"Old bridge","New bridge open") -> New bridge open | C29: 2039 | D29: 2643373.95 | E29: =IF(C29<='Bridge List'!$M$7,0,IF(C29-$C$8>=$F$2,D29*$C$46,0)) -> 2326169.076 | F29: =IF(C29<='Bridge List'!$M$7,0,IF(C29-$C$8>=$E$2,D29*$C$47,0)) -> 317204.874 | G29: 7211124.136 | H29: 983335.1095 | I29: 160247.203 | J29: 21851.89132 | K29: 0.2441948855 | L29: 2.380490411 | M29: 8.332945607 | N29: =G29*'Fixed Factors'!$D$3+G29*'Fixed Factors'!$D$7*'Fixed Factors'!$I$8 -> 2876517.413 | O29: =H29*'Fixed Factors'!$D$4+H29*'Fixed Factors'!$D$8*'Fixed Factors'!$I$7 -> 1014555.999 | P29: 3162959.293 | Q29: 624964.0918 | R29: =J29*'Shipper-Logistics Costs'!$I$5*'Shipper-Logistics Costs'!$I$7*SUMPRODUCT('Shipper-Logistics Costs'!$D$6:$D$48,'Shipper-Logistics Costs'!$N$6:$N$48) -> 598770.2058 | S29: 2794532.888 | T29: =G29*'Fixed Factors'!$D$26 -> 68618.45415 | U29: =H29*'Fixed Factors'!$D$27 -> 149654.8113
A30: =IF(C30<='Bridge List'!$M$7,"Old bridge","New bridge open") -> New bridge open | C30: 2040 | D30: 2667164.316 | E30: =IF(C30<='Bridge List'!$M$7,0,IF(C30-$C$8>=$F$2,D30*$C$46,0)) -> 2347104.598 | F30: =IF(C30<='Bridge List'!$M$7,0,IF(C30-$C$8>=$E$2,D30*$C$47,0)) -> 320059.7179 | G30: 7276024.253 | H30: 992185.1255 | I30: 161689.4279 | J30: 22048.55834 | K30: 0.2463926395 | L30: 2.401914825 | M30: 8.407942117 | N30: =G30*'Fixed Factors'!$D$3+G30*'Fixed Factors'!$D$7*'Fixed Factors'!$I$8 -> 2902406.07 | O30: =H30*'Fixed Factors'!$D$4+H30*'Fixed Factors'!$D$8*'Fixed Factors'!$I$7 -> 1023687.003 | P30: 3191425.927 | Q30: 630588.7686 | R30: =J30*'Shipper-Logistics Costs'!$I$5*'Shipper-Logistics Costs'!$I$7*SUMPRODUCT('Shipper-Logistics Costs'!$D$6:$D$48,'Shipper-Logistics Costs'!$N$6:$N$48) -> 604159.1377 | S30: 2819683.684 | T30: =G30*'Fixed Factors'!$D$26 -> 69236.02023 | U30: =H30*'Fixed Factors'!$D$27 -> 151001.7046
A31: =IF(C31<='Bridge List'!$M$7,"Old bridge","New bridge open") -> New bridge open | C31: 2041 | D31: 2691168.795 | E31: =IF(C31<='Bridge List'!$M$7,0,IF(C31-$C$8>=$F$2,D31*$C$46,0)) -> 2368228.539 | F31: =IF(C31<='Bridge List'!$M$7,0,IF(C31-$C$8>=$E$2,D31*$C$47,0)) -> 322940.2553 | G31: 7341508.472 | H31: 1001114.792 | I31: 163144.6327 | J31: 22246.99537 | K31: 0.2486101732 | L31: 2.423532058 | M31: 8.483613596 | N31: =G31*'Fixed Factors'!$D$3+G31*'Fixed Factors'!$D$7*'Fixed Factors'!$I$8 -> 2928527.724 | O31: =H31*'Fixed Factors'!$D$4+H31*'Fixed Factors'!$D$8*'Fixed Factors'!$I$7 -> 1032900.186 | P31: 3220148.76 | Q31: 636264.0675 | R31: =J31*'Shipper-Logistics Costs'!$I$5*'Shipper-Logistics Costs'!$I$7*SUMPRODUCT('Shipper-Logistics Costs'!$D$6:$D$48,'Shipper-Logistics Costs'!$N$6:$N$48) -> 609596.5699 | S31: 2845060.837 | T31: =G31*'Fixed Factors'!$D$26 -> 69859.14442 | U31: =H31*'Fixed Factors'!$D$27 -> 152360.72
A32: =IF(C32<='Bridge List'!$M$7,"Old bridge","New bridge open") -> New bridge open | C32: 2042 | D32: 2715389.314 | E32: =IF(C32<='Bridge List'!$M$7,0,IF(C32-$C$8>=$F$2,D32*$C$46,0)) -> 2389542.596 | F32: =IF(C32<='Bridge List'!$M$7,0,IF(C32-$C$8>=$E$2,D32*$C$47,0)) -> 325846.7176 | G32: 7407582.048 | H32: 1010124.825 | I32: 164612.9344 | J32: =H32/$C$49 -> 22447.21833 | K32: 0.2508476648 | L32: 2.445343846 | M32: 8.559966119 | N32: =G32*'Fixed Factors'!$D$3+G32*'Fixed Factors'!$D$7*'Fixed Factors'!$I$8 -> 2954884.474 | O32: =H32*'Fixed Factors'!$D$4+H32*'Fixed Factors'!$D$8*'Fixed Factors'!$I$7 -> 1042196.288 | P32: 3249130.099 | Q32: 641990.4441 | R32: =J32*'Shipper-Logistics Costs'!$I$5*'Shipper-Logistics Costs'!$I$7*SUMPRODUCT('Shipper-Logistics Costs'!$D$6:$D$48,'Shipper-Logistics Costs'!$N$6:$N$48) -> 615082.9391 | S32: 2870666.385 | T32: =G32*'Fixed Factors'!$D$26 -> 70487.87672 | U32: =H32*'Fixed Factors'!$D$27 -> 153731.9665
A33: =IF(C33<='Bridge List'!$M$7,"Old bridge","New bridge open") -> New bridge open | C33: 2043 | D33: 2739827.818 | E33: =IF(C33<='Bridge List'!$M$7,0,IF(C33-$C$8>=$F$2,D33*$C$46,0)) -> 2411048.479 | F33: =IF(C33<='Bridge List'!$M$7,0,IF(C33-$C$8>=$E$2,D33*$C$47,0)) -> 328779.3381 | G33: 7474250.286 | H33: 1019215.948 | I33: 166094.4508 | J33: 22649.24329 | K33: 0.2531052938 | L33: 2.467351941 | M33: 8.637005814 | N33: =G33*'Fixed Factors'!$D$3+G33*'Fixed Factors'!$D$7*'Fixed Factors'!$I$8 -> 2981478.434 | O33: =H33*'Fixed Factors'!$D$4+H33*'Fixed Factors'!$D$8*'Fixed Factors'!$I$7 -> 1051576.054 | P33: 3278372.27 | Q33: 647768.3581 | R33: =J33*'Shipper-Logistics Costs'!$I$5*'Shipper-Logistics Costs'!$I$7*SUMPRODUCT('Shipper-Logistics Costs'!$D$6:$D$48,'Shipper-Logistics Costs'!$N$6:$N$48) -> 620618.6855 | S33: 2896502.382 | T33: =G33*'Fixed Factors'!$D$26 -> 71122.26761 | U33: =H33*'Fixed Factors'!$D$27 -> 155115.5542
A34: =IF(C34<='Bridge List'!$M$7,"Old bridge","New bridge open") -> New bridge open | C34: 2044 | D34: 2764486.268 | E34: =IF(C34<='Bridge List'!$M$7,0,IF(C34-$C$8>=$F$2,D34*$C$46,0)) -> 2432747.916 | F34: =IF(C34<='Bridge List'!$M$7,0,IF(C34-$C$8>=$E$2,D34*$C$47,0)) -> 331738.3521 | G34: 7541518.539 | H34: 1028388.892 | I34: 167589.3009 | J34: 22853.08648 | K34: 0.2553832414 | L34: 2.489558109 | M34: 8.714738866 | N34: =G34*'Fixed Factors'!$D$3+G34*'Fixed Factors'!$D$7*'Fixed Factors'!$I$8 -> 3008311.74 | O34: =H34*'Fixed Factors'!$D$4+H34*'Fixed Factors'!$D$8*'Fixed Factors'!$I$7 -> 1061040.239 | P34: 3307877.62 | Q34: 653598.2734 | R34: =J34*'Shipper-Logistics Costs'!$I$5*'Shipper-Logistics Costs'!$I$7*SUMPRODUCT('Shipper-Logistics Costs'!$D$6:$D$48,'Shipper-Logistics Costs'!$N$6:$N$48) -> 626204.2537 | S34: 2922570.904 | T34: =G34*'Fixed Factors'!$D$26 -> 71762.36801 | U34: =H34*'Fixed Factors'!$D$27 -> 156511.5942
A35: =IF(C35<='Bridge List'!$M$7,"Old bridge","New bridge open") -> New bridge open | C35: 2045 | D35: 2789366.644 | E35: =IF(C35<='Bridge List'!$M$7,0,IF(C35-$C$8>=$F$2,D35*$C$46,0)) -> 2454642.647 | F35: =IF(C35<='Bridge List'!$M$7,0,IF(C35-$C$8>=$E$2,D35*$C$47,0)) -> 334723.9973 | G35: 7609392.206 | H35: 1037644.392 | I35: 169097.6046 | J35: 23058.76426 | K35: 0.2576816906 | L35: 2.511964132 | M35: 8.793171516 | N35: =G35*'Fixed Factors'!$D$3+G35*'Fixed Factors'!$D$7*'Fixed Factors'!$I$8 -> 3035386.546 | O35: =H35*'Fixed Factors'!$D$4+H35*'Fixed Factors'!$D$8*'Fixed Factors'!$I$7 -> 1070589.601 | P35: 3337648.519 | Q35: 659480.6578 | R35: =J35*'Shipper-Logistics Costs'!$I$5*'Shipper-Logistics Costs'!$I$7*SUMPRODUCT('Shipper-Logistics Costs'!$D$6:$D$48,'Shipper-Logistics Costs'!$N$6:$N$48) -> 631840.092 | S35: 2948874.042 | T35: =G35*'Fixed Factors'!$D$26 -> 72408.22933 | U35: =H35*'Fixed Factors'!$D$27 -> 157920.1985
A36: =IF(C36<='Bridge List'!$M$7,"Old bridge","New bridge open") -> New bridge open | C36: 2046 | D36: 2814470.944 | E36: =IF(C36<='Bridge List'!$M$7,0,IF(C36-$C$8>=$F$2,D36*$C$46,0)) -> 2476734.431 | F36: =IF(C36<='Bridge List'!$M$7,0,IF(C36-$C$8>=$E$2,D36*$C$47,0)) -> 337736.5133 | G36: 7677876.736 | H36: 1046983.191 | I36: 170619.483 | J36: 23266.29314 | K36: 0.2600008258 | L36: 2.534571809 | M36: 8.87231006 | N36: =G36*'Fixed Factors'!$D$3+G36*'Fixed Factors'!$D$7*'Fixed Factors'!$I$8 -> 3062705.024 | O36: =H36*'Fixed Factors'!$D$4+H36*'Fixed Factors'!$D$8*'Fixed Factors'!$I$7 -> 1080224.908 | P36: 3367687.356 | Q36: 665415.9837 | R36: =J36*'Shipper-Logistics Costs'!$I$5*'Shipper-Logistics Costs'!$I$7*SUMPRODUCT('Shipper-Logistics Costs'!$D$6:$D$48,'Shipper-Logistics Costs'!$N$6:$N$48) -> 637526.6528 | S36: 2975413.908 | T36: =G36*'Fixed Factors'!$D$26 -> 73059.90339 | U36: =H36*'Fixed Factors'!$D$27 -> 159341.4803
A37: =IF(C37<='Bridge List'!$M$7,"Old bridge","New bridge open") -> New bridge open | C37: 2047 | D37: 2839801.183 | E37: =IF(C37<='Bridge List'!$M$7,0,IF(C37-$C$8>=$F$2,D37*$C$46,0)) -> 2499025.041 | F37: =IF(C37<='Bridge List'!$M$7,0,IF(C37-$C$8>=$E$2,D37*$C$47,0)) -> 340776.1419 | G37: 7746977.626 | H37: 1056406.04 | I37: =G37/$C$49 -> 172155.0584 | J37: 23475.68978 | K37: 0.2623408332 | L37: 2.557382955 | M37: 8.95216085 | N37: =G37*'Fixed Factors'!$D$3+G37*'Fixed Factors'!$D$7*'Fixed Factors'!$I$8 -> 3090269.37 | O37: =H37*'Fixed Factors'!$D$4+H37*'Fixed Factors'!$D$8*'Fixed Factors'!$I$7 -> 1089946.932 | P37: 3397996.542 | Q37: 671404.7276 | R37: =J37*'Shipper-Logistics Costs'!$I$5*'Shipper-Logistics Costs'!$I$7*SUMPRODUCT('Shipper-Logistics Costs'!$D$6:$D$48,'Shipper-Logistics Costs'!$N$6:$N$48) -> 643264.3927 | S37: 3002192.633 | T37: =G37*'Fixed Factors'!$D$26 -> 73717.44252 | U37: =H37*'Fixed Factors'!$D$27 -> 160775.5536
A38: =IF(C38<='Bridge List'!$M$7,"Old bridge","New bridge open") -> New bridge open | C38: 2048 | D38: 2865359.393 | E38: =IF(C38<='Bridge List'!$M$7,0,IF(C38-$C$8>=$F$2,D38*$C$46,0)) -> 2521516.266 | F38: =IF(C38<='Bridge List'!$M$7,0,IF(C38-$C$8>=$E$2,D38*$C$47,0)) -> 343843.1272 | G38: 7816700.425 | H38: 1065913.694 | I38: 173704.4539 | J38: 23686.97098 | K38: 0.2647019007 | L38: 2.580399402 | M38: 9.032730298 | N38: =G38*'Fixed Factors'!$D$3+G38*'Fixed Factors'!$D$7*'Fixed Factors'!$I$8 -> 3118081.794 | O38: =H38*'Fixed Factors'!$D$4+H38*'Fixed Factors'!$D$8*'Fixed Factors'!$I$7 -> 1099756.454 | P38: 3428578.511 | Q38: 677447.3702 | R38: =J38*'Shipper-Logistics Costs'!$I$5*'Shipper-Logistics Costs'!$I$7*SUMPRODUCT('Shipper-Logistics Costs'!$D$6:$D$48,'Shipper-Logistics Costs'!$N$6:$N$48) -> 649053.7722 | S38: 3029212.367 | T38: =G38*'Fixed Factors'!$D$26 -> 74380.8995 | U38: =H38*'Fixed Factors'!$D$27 -> 162222.5336
A39: =IF(C39<='Bridge List'!$M$7,"Old bridge","New bridge open") -> New bridge open | C39: 2049 | D39: 2891147.628 | E39: =IF(C39<='Bridge List'!$M$7,0,IF(C39-$C$8>=$F$2,D39*$C$46,0)) -> 2544209.912 | F39: =IF(C39<='Bridge List'!$M$7,0,IF(C39-$C$8>=$E$2,D39*$C$47,0)) -> 346937.7153 | G39: 7887050.729 | H39: 1075506.918 | I39: 175267.794 | J39: 23900.15372 | K39: 0.2670842179 | L39: 2.603622996 | M39: 9.11402487 | N39: =G39*'Fixed Factors'!$D$3+G39*'Fixed Factors'!$D$7*'Fixed Factors'!$I$8 -> 3146144.53 | O39: =H39*'Fixed Factors'!$D$4+H39*'Fixed Factors'!$D$8*'Fixed Factors'!$I$7 -> 1109654.262 | P39: 3459435.717 | Q39: 683544.3965 | R39: =J39*'Shipper-Logistics Costs'!$I$5*'Shipper-Logistics Costs'!$I$7*SUMPRODUCT('Shipper-Logistics Costs'!$D$6:$D$48,'Shipper-Logistics Costs'!$N$6:$N$48) -> 654895.2562 | S39: 3056475.278 | T39: =G39*'Fixed Factors'!$D$26 -> 75050.3276 | U39: =H39*'Fixed Factors'!$D$27 -> 163682.5364
A40: =IF(C40<='Bridge List'!$M$7,"Old bridge","New bridge open") -> New bridge open | C40: 2050 | D40: 2917167.956 | E40: =IF(C40<='Bridge List'!$M$7,0,IF(C40-$C$8>=$F$2,D40*$C$46,0)) -> 2567107.802 | F40: =IF(C40<='Bridge List'!$M$7,0,IF(C40-$C$8>=$E$2,D40*$C$47,0)) -> 350060.1548 | G40: 7958034.185 | H40: 1085186.48 | I40: 176845.2041 | J40: 24115.25511 | K40: 0.2694879758 | L40: 2.627055603 | M40: 9.196051094 | N40: =G40*'Fixed Factors'!$D$3+G40*'Fixed Factors'!$D$7*'Fixed Factors'!$I$8 -> 3174459.831 | O40: =H40*'Fixed Factors'!$D$4+H40*'Fixed Factors'!$D$8*'Fixed Factors'!$I$7 -> 1119641.151 | P40: 3490570.639 | Q40: 689696.296 | R40: =J40*'Shipper-Logistics Costs'!$I$5*'Shipper-Logistics Costs'!$I$7*SUMPRODUCT('Shipper-Logistics Costs'!$D$6:$D$48,'Shipper-Logistics Costs'!$N$6:$N$48) -> 660789.3135 | S40: 3083983.556 | T40: =G40*'Fixed Factors'!$D$26 -> 75725.78055 | U40: =H40*'Fixed Factors'!$D$27 -> 165155.6792
C41: Total | F41: Checks: | G41: =G40/E40 -> 3.1 | H41: =H40/F40 -> 3.1 | I41: =G41/$C$49*60 -> 4.133333333 | J41: =H41/$C$49*60 -> 4.133333333 | N41: =SUM(N6:N40) -> 53007403.98 | O41: =SUM(O6:O40) -> 27851139.92 | P41: 58285849.5 | Q41: 17156236.21 | R41: 16437173.3 | S41: 54522741.36 | T41: 1264475.613 | U41: 4108257.301 | X41: =SUM(N41:U41) -> 232633277.2
G42: Miles/Trip | H42: Miles/Trip | I42: Min/Trip | J42: Min/Trip
B43: Assumptions
B44: Category | C44: Value | D44: Unit
B45: Growth Rate | C45: 0.009
B46: % Car | C46: =INDEX(TDC!$F$3:$F$7,MATCH('Traffic Group Benefits'!$D$2,TDC!$B$3:$B$7,0)) -> 0.88
B47: % Truck | C47: =1-C46 -> 0.12
B48: Detour Length | C48: =INDEX('Traffic Groups'!J2:J6,MATCH('Traffic Group Benefits'!$D$2,'Traffic Groups'!$A$2:$A$6,0)) -> 3.1 | D48: Miles
B49: Speed | C49: 45 | D49: MPH
B50: Fatalities | C50: 2.98 | D50: Per 100M VMT
B51: Personal Injury | C51: 29.05 | D51: Per 100M VMT
B52: Property Damage | C52: 101.69 | D52: Per 100M VMT
B53: Fatalities | C53: ='Fixed Factors'!G3 -> 9600000 | D53: Cost per accident
B54: Personal Injury | C54: ='Fixed Factors'!H3 -> 174000 | D54: Cost per accident
B55: Property Damage | C55: ='Fixed Factors'!I3 -> 4327 | D55: Cost per accident
B56: 100M VMT | C56: 100000000
B57: Occupancy - Psgr. Car | C57: ='Fixed Factors'!I12 -> 1.39 | D57: Persons per Vehicle
B58: Occupancy - Truck | C58: ='Fixed Factors'!I13 -> 1 | D58: Persons per Vehicle
B59: Psgr Cost per Hour | C59: ='Fixed Factors'!C12 -> 14.2 | D59: $/hr per occupant
B60: Truck Crew per Hour | C60: ='Fixed Factors'!C13 -> 28.6 | D60: $/hr per crew member

Sheet Individual Bridge Costs
D1: Bridge (FED ID) | E1: Yrs to 20T Post | F1: Yrs to Closed | G1: Expected Life
C2: Bridge | D2: ='BCA Summary'!B1 -> 13783 | E2: =INDEX('Bridge List'!$C$2:$C$8,MATCH('Individual Bridge Costs'!$D$2,'Bridge List'!$A$2:$A$8,0)) -> 5 | F2: =INDEX('Bridge List'!$D$2:$D$8,MATCH('Individual Bridge Costs'!$D$2,'Bridge List'!$A$2:$A$8,0)) -> 15 | G2: =INDEX('Bridge List'!$G$2:$G$8,MATCH('Individual Bridge Costs'!$D$2,'Bridge List'!$A$2:$A$8,0)) -> 30
D4: Base Case | E4: Base Case | F4: Project Case | G4: Project Case
A5: Construction Status - Build | B5: Bridge Status - Base | C5: Year | D5: Construction Costs | E5: O&M | F5: Construction Costs | G5: O&M | H5: Residual Value | J5: Row Index for Lookup
A6: =IF(C6<='Bridge List'!$M$7,"Old bridge","New bridge open") -> Old bridge | B6: =IF(AND($E$2=$F$2,C6-$C$8=$E$2),"Posted & Closed",IF(C6-$C$8=$E$2,"Posted",IF(C6-$C$8=$F$2,"Closed",""))) ->  | C6: 2016 | D6: N/A | E6: N/A | F6: N/A | G6: N/A | H6: N/A
A7: =IF(C7<='Bridge List'!$M$7,"Old bridge","New bridge open") -> Old bridge | B7: =IF(AND($E$2=$F$2,C7-$C$8=$E$2),"Posted & Closed",IF(C7-$C$8=$E$2,"Posted",IF(C7-$C$8=$F$2,"Closed",""))) ->  | C7: 2017 | D7: 0 | E7: 0 | F7: =HLOOKUP($D$2,'Capital Costs'!$B$2:$H$36,J8,FALSE) -> 207372.8487 | G7: 0
A8: =IF(C8<='Bridge List'!$M$7,"Old bridge","New bridge open") -> Old bridge | C8: 2018 | D8: 0 | E8: =HLOOKUP($D$2,'O&M Costs'!$C$3:$I$36,J8,FALSE) -> 4504 | F8: =HLOOKUP($D$2,'Capital Costs'!$B$2:$H$36,J9,FALSE) -> 0 | G8: =HLOOKUP($D$2,'O&M Costs'!$C$40:$I$73,J8,FALSE) -> 4504 | J8: 2
A9: =IF(C9<='Bridge List'!$M$7,"Old bridge","New bridge open") -> Old bridge | C9: 2019 | D9: 0 | E9: =HLOOKUP($D$2,'O&M Costs'!$C$3:$I$36,J9,FALSE) -> 4504 | F9: =HLOOKUP($D$2,'Capital Costs'!$B$2:$H$36,J10,FALSE) -> 33556.00921 | G9: =HLOOKUP($D$2,'O&M Costs'!$C$40:$I$73,J9,FALSE) -> 4504 | J9: 3
A10: =IF(C10<='Bridge List'!$M$7,"Old bridge","New bridge open") -> Old bridge | C10: 2020 | D10: 0 | E10: =HLOOKUP($D$2,'O&M Costs'!$C$3:$I$36,J10,FALSE) -> 4504 | F10: =HLOOKUP($D$2,'Capital Costs'!$B$2:$H$36,J11,FALSE) -> 299437.5333 | G10: =HLOOKUP($D$2,'O&M Costs'!$C$40:$I$73,J10,FALSE) -> 0 | J10: 4
A11: =IF(C11<='Bridge List'!$M$7,"Old bridge","New bridge open") -> Old bridge | C11: 2021 | D11: 0 | E11: =HLOOKUP($D$2,'O&M Costs'!$C$3:$I$36,J11,FALSE) -> 4504 | F11: =HLOOKUP($D$2,'Capital Costs'!$B$2:$H$36,J12,FALSE) -> 299437.5333 | G11: =HLOOKUP($D$2,'O&M Costs'!$C$40:$I$73,J11,FALSE) -> 0 | J11: 5
A12: =IF(C12<='Bridge List'!$M$7,"Old bridge","New bridge open") -> Old bridge | C12: 2022 | D12: 0 | E12: =HLOOKUP($D$2,'O&M Costs'!$C$3:$I$36,J12,FALSE) -> 4504 | F12: =HLOOKUP($D$2,'Capital Costs'!$B$2:$H$36,J13,FALSE) -> 299437.5333 | G12: =HLOOKUP($D$2,'O&M Costs'!$C$40:$I$73,J12,FALSE) -> 0 | J12: 6
A13: =IF(C13<='Bridge List'!$M$7,"Old bridge","New bridge open") -> New bridge open | B13: Posted | C13: 2023 | D13: 0 | E13: =HLOOKUP($D$2,'O&M Costs'!$C$3:$I$36,J13,FALSE) -> 4504 | F13: =HLOOKUP($D$2,'Capital Costs'!$B$2:$H$36,J14,FALSE) -> 0 | G13: =HLOOKUP($D$2,'O&M Costs'!$C$40:$I$73,J13,FALSE) -> 450.4 | J13: 7
A14: =IF(C14<='Bridge List'!$M$7,"Old bridge","New bridge open") -> New bridge open | C14: 2024 | D14: 0 | E14: =HLOOKUP($D$2,'O&M Costs'!$C$3:$I$36,J14,FALSE) -> 4504 | F14: =HLOOKUP($D$2,'Capital Costs'!$B$2:$H$36,J15,FALSE) -> 0 | G14: =HLOOKUP($D$2,'O&M Costs'!$C$40:$I$73,J14,FALSE) -> 450.4 | J14: 8
A15: =IF(C15<='Bridge List'!$M$7,"Old bridge","New bridge open") -> New bridge open | C15: 2025 | D15: 0 | E15: =HLOOKUP($D$2,'O&M Costs'!$C$3:$I$36,J15,FALSE) -> 4504 | F15: =HLOOKUP($D$2,'Capital Costs'!$B$2:$H$36,J16,FALSE) -> 0 | G15: =HLOOKUP($D$2,'O&M Costs'!$C$40:$I$73,J15,FALSE) -> 450.4 | J15: 9
A16: =IF(C16<='Bridge List'!$M$7,"Old bridge","New bridge open") -> New bridge open | C16: 2026 | D16: 0 | E16: =HLOOKUP($D$2,'O&M Costs'!$C$3:$I$36,J16,FALSE) -> 4504 | F16: =HLOOKUP($D$2,'Capital Costs'!$B$2:$H$36,J17,FALSE) -> 0 | G16: =HLOOKUP($D$2,'O&M Costs'!$C$40:$I$73,J16,FALSE) -> 450.4 | J16: 10
A17: =IF(C17<='Bridge List'!$M$7,"Old bridge","New bridge open") -> New bridge open | C17: 2027 | D17: 0 | E17: =HLOOKUP($D$2,'O&M Costs'!$C$3:$I$36,J17,FALSE) -> 4504 | F17: =HLOOKUP($D$2,'Capital Costs'!$B$2:$H$36,J18,FALSE) -> 0 | G17: =HLOOKUP($D$2,'O&M Costs'!$C$40:$I$73,J17,FALSE) -> 450.4 | J17: 11
A18: =IF(C18<='Bridge List'!$M$7,"Old bridge","New bridge open") -> New bridge open | C18: 2028 | D18: 0 | E18: =HLOOKUP($D$2,'O&M Costs'!$C$3:$I$36,J18,FALSE) -> 4504 | F18: =HLOOKUP($D$2,'Capital Costs'!$B$2:$H$36,J19,FALSE) -> 0 | G18: =HLOOKUP($D$2,'O&M Costs'!$C$40:$I$73,J18,FALSE) -> 450.4 | J18: 12
A19: =IF(C19<='Bridge List'!$M$7,"Old bridge","New bridge open") -> New bridge open | C19: 2029 | D19: 0 | E19: =HLOOKUP($D$2,'O&M Costs'!$C$3:$I$36,J19,FALSE) -> 4504 | F19: =HLOOKUP($D$2,'Capital Costs'!$B$2:$H$36,J20,FALSE) -> 0 | G19: =HLOOKUP($D$2,'O&M Costs'!$C$40:$I$73,J19,FALSE) -> 450.4 | J19: 13
A20: =IF(C20<='Bridge List'!$M$7,"Old bridge","New bridge open") -> New bridge open | C20: 2030 | D20: 0 | E20: =HLOOKUP($D$2,'O&M Costs'!$C$3:$I$36,J20,FALSE) -> 4504 | F20: =HLOOKUP($D$2,'Capital Costs'!$B$2:$H$36,J21,FALSE) -> 0 | G20: =HLOOKUP($D$2,'O&M Costs'!$C$40:$I$73,J20,FALSE) -> 450.4 | J20: 14
A21: =IF(C21<='Bridge List'!$M$7,"Old bridge","New bridge open") -> New bridge open | C21: 2031 | D21: 0 | E21: =HLOOKUP($D$2,'O&M Costs'!$C$3:$I$36,J21,FALSE) -> 4504 | F21: =HLOOKUP($D$2,'Capital Costs'!$B$2:$H$36,J22,FALSE) -> 0 | G21: =HLOOKUP($D$2,'O&M Costs'!$C$40:$I$73,J21,FALSE) -> 450.4 | J21: 15
A22: =IF(C22<='Bridge List'!$M$7,"Old bridge","New bridge open") -> New bridge open | C22: 2032 | D22: 0 | E22: =HLOOKUP($D$2,'O&M Costs'!$C$3:$I$36,J22,FALSE) -> 4504 | F22: =HLOOKUP($D$2,'Capital Costs'!$B$2:$H$36,J23,FALSE) -> 0 | G22: =HLOOKUP($D$2,'O&M Costs'!$C$40:$I$73,J22,FALSE) -> 450.4 | J22: 16
A23: =IF(C23<='Bridge List'!$M$7,"Old bridge","New bridge open") -> New bridge open | B23: Closed | C23: 2033 | D23: 0 | E23: =HLOOKUP($D$2,'O&M Costs'!$C$3:$I$36,J23,FALSE) -> 4504 | F23: =HLOOKUP($D$2,'Capital Costs'!$B$2:$H$36,J24,FALSE) -> 0 | G23: =HLOOKUP($D$2,'O&M Costs'!$C$40:$I$73,J23,FALSE) -> 450.4 | J23: 17
A24: =IF(C24<='Bridge List'!$M$7,"Old bridge","New bridge open") -> New bridge open | C24: 2034 | D24: 0 | E24: =HLOOKUP($D$2,'O&M Costs'!$C$3:$I$36,J24,FALSE) -> 0 | F24: =HLOOKUP($D$2,'Capital Costs'!$B$2:$H$36,J25,FALSE) -> 0 | G24: =HLOOKUP($D$2,'O&M Costs'!$C$40:$I$73,J24,FALSE) -> 450.4 | J24: 18
A25: =IF(C25<='Bridge List'!$M$7,"Old bridge","New bridge open") -> New bridge open | C25: 2035 | D25: 0 | E25: =HLOOKUP($D$2,'O&M Costs'!$C$3:$I$36,J25,FALSE) -> 0 | F25: =HLOOKUP($D$2,'Capital Costs'!$B$2:$H$36,J26,FALSE) -> 0 | G25: =HLOOKUP($D$2,'O&M Costs'!$C$40:$I$73,J25,FALSE) -> 450.4 | J25: 19
A26: =IF(C26<='Bridge List'!$M$7,"Old bridge","New bridge open") -> New bridge open | C26: 2036 | D26: 0 | E26: =HLOOKUP($D$2,'O&M Costs'!$C$3:$I$36,J26,FALSE) -> 0 | F26: =HLOOKUP($D$2,'Capital Costs'!$B$2:$H$36,J27,FALSE) -> 0 | G26: =HLOOKUP($D$2,'O&M Costs'!$C$40:$I$73,J26,FALSE) -> 450.4 | J26: 20
A27: =IF(C27<='Bridge List'!$M$7,"Old bridge","New bridge open") -> New bridge open | C27: 2037 | D27: 0 | E27: =HLOOKUP($D$2,'O&M Costs'!$C$3:$I$36,J27,FALSE) -> 0 | F27: =HLOOKUP($D$2,'Capital Costs'!$B$2:$H$36,J28,FALSE) -> 0 | G27: =HLOOKUP($D$2,'O&M Costs'!$C$40:$I$73,J27,FALSE) -> 450.4 | J27: 21
A28: =IF(C28<='Bridge List'!$M$7,"Old bridge","New bridge open") -> New bridge open | C28: 2038 | D28: 0 | E28: =HLOOKUP($D$2,'O&M Costs'!$C$3:$I$36,J28,FALSE) -> 0 | F28: =HLOOKUP($D$2,'Capital Costs'!$B$2:$H$36,J29,FALSE) -> 0 | G28: =HLOOKUP($D$2,'O&M Costs'!$C$40:$I$73,J28,FALSE) -> 450.4 | J28: 22
A29: =IF(C29<='Bridge List'!$M$7,"Old bridge","New bridge open") -> New bridge open | C29: 2039 | D29: 0 | E29: =HLOOKUP($D$2,'O&M Costs'!$C$3:$I$36,J29,FALSE) -> 0 | F29: =HLOOKUP($D$2,'Capital Costs'!$B$2:$H$36,J30,FALSE) -> 0 | G29: =HLOOKUP($D$2,'O&M Costs'!$C$40:$I$73,J29,FALSE) -> 450.4 | J29: 23
A30: =IF(C30<='Bridge List'!$M$7,"Old bridge","New bridge open") -> New bridge open | C30: 2040 | D30: 0 | E30: =HLOOKUP($D$2,'O&M Costs'!$C$3:$I$36,J30,FALSE) -> 0 | F30: =HLOOKUP($D$2,'Capital Costs'!$B$2:$H$36,J31,FALSE) -> 0 | G30: =HLOOKUP($D$2,'O&M Costs'!$C$40:$I$73,J30,FALSE) -> 450.4 | J30: 24
A31: =IF(C31<='Bridge List'!$M$7,"Old bridge","New bridge open") -> New bridge open | C31: 2041 | D31: 0 | E31: =HLOOKUP($D$2,'O&M Costs'!$C$3:$I$36,J31,FALSE) -> 0 | F31: =HLOOKUP($D$2,'Capital Costs'!$B$2:$H$36,J32,FALSE) -> 0 | G31: =HLOOKUP($D$2,'O&M Costs'!$C$40:$I$73,J31,FALSE) -> 450.4 | J31: 25
A32: =IF(C32<='Bridge List'!$M$7,"Old bridge","New bridge open") -> New bridge open | C32: 2042 | D32: 0 | E32: =HLOOKUP($D$2,'O&M Costs'!$C$3:$I$36,J32,FALSE) -> 0 | F32: =HLOOKUP($D$2,'Capital Costs'!$B$2:$H$36,J33,FALSE) -> 0 | G32: =HLOOKUP($D$2,'O&M Costs'!$C$40:$I$73,J32,FALSE) -> 450.4 | J32: 26
A33: =IF(C33<='Bridge List'!$M$7,"Old bridge","New bridge open") -> New bridge open | C33: 2043 | D33: 0 | E33: =HLOOKUP($D$2,'O&M Costs'!$C$3:$I$36,J33,FALSE) -> 0 | F33: =HLOOKUP($D$2,'Capital Costs'!$B$2:$H$36,J34,FALSE) -> 0 | G33: =HLOOKUP($D$2,'O&M Costs'!$C$40:$I$73,J33,FALSE) -> 450.4 | J33: 27
A34: =IF(C34<='Bridge List'!$M$7,"Old bridge","New bridge open") -> New bridge open | C34: 2044 | D34: 0 | E34: =HLOOKUP($D$2,'O&M Costs'!$C$3:$I$36,J34,FALSE) -> 0 | F34: =HLOOKUP($D$2,'Capital Costs'!$B$2:$H$36,J35,FALSE) -> 0 | G34: =HLOOKUP($D$2,'O&M Costs'!$C$40:$I$73,J34,FALSE) -> 450.4 | J34: 28
A35: =IF(C35<='Bridge List'!$M$7,"Old bridge","New bridge open") -> New bridge open | C35: 2045 | D35: 0 | E35: =HLOOKUP($D$2,'O&M Costs'!$C$3:$I$36,J35,FALSE) -> 0 | F35: =HLOOKUP($D$2,'Capital Costs'!$B$2:$H$36,J36,FALSE) -> 0 | G35: =HLOOKUP($D$2,'O&M Costs'!$C$40:$I$73,J35,FALSE) -> 450.4 | J35: 29
A36: =IF(C36<='Bridge List'!$M$7,"Old bridge","New bridge open") -> New bridge open | C36: 2046 | D36: 0 | E36: =HLOOKUP($D$2,'O&M Costs'!$C$3:$I$36,J36,FALSE) -> 0 | F36: =HLOOKUP($D$2,'Capital Costs'!$B$2:$H$36,J37,FALSE) -> 0 | G36: =HLOOKUP($D$2,'O&M Costs'!$C$40:$I$73,J36,FALSE) -> 450.4 | J36: 30
A37: =IF(C37<='Bridge List'!$M$7,"Old bridge","New bridge open") -> New bridge open | C37: 2047 | D37: 0 | E37: =HLOOKUP($D$2,'O&M Costs'!$C$3:$I$36,J37,FALSE) -> 0 | F37: =HLOOKUP($D$2,'Capital Costs'!$B$2:$H$36,J38,FALSE) -> 0 | G37: =HLOOKUP($D$2,'O&M Costs'!$C$40:$I$73,J37,FALSE) -> 450.4 | J37: 31
A38: =IF(C38<='Bridge List'!$M$7,"Old bridge","New bridge open") -> New bridge open | C38: 2048 | D38: 0 | E38: =HLOOKUP($D$2,'O&M Costs'!$C$3:$I$36,J38,FALSE) -> 0 | F38: =HLOOKUP($D$2,'Capital Costs'!$B$2:$H$36,J39,FALSE) -> 0 | G38: =HLOOKUP($D$2,'O&M Costs'!$C$40:$I$73,J38,FALSE) -> 450.4 | J38: 32
A39: =IF(C39<='Bridge List'!$M$7,"Old bridge","New bridge open") -> New bridge open | C39: 2049 | D39: 0 | E39: =HLOOKUP($D$2,'O&M Costs'!$C$3:$I$36,J39,FALSE) -> 0 | F39: =HLOOKUP($D$2,'Capital Costs'!$B$2:$H$36,J40,FALSE) -> 0 | G39: =HLOOKUP($D$2,'O&M Costs'!$C$40:$I$73,J39,FALSE) -> 450.4 | J39: 33
A40: =IF(C40<='Bridge List'!$M$7,"Old bridge","New bridge open") -> New bridge open | C40: 2050 | D40: 0 | E40: =HLOOKUP($D$2,'O&M Costs'!$C$3:$I$36,J40,FALSE) -> 0 | F40: =HLOOKUP($D$2,'Capital Costs'!$B$2:$H$36,J41,FALSE) -> 0 | G40: =HLOOKUP($D$2,'O&M Costs'!$C$40:$I$73,J40,FALSE) -> 450.4 | H40: =IF(OR(D2=13079,D2=10053,D2=13653,D2=13925,D2=12934),((75-(C40-C12))/G2)*(SUM(F7:F12)),0) -> 0 | J40: 34
D41: =SUM(D7:D40) -> 0 | E41: =SUM(E7:E40) -> 72064 | F41: 1139241.458 | G41: 21619.2 | H41: 0 | J41: 35
J42: 36

Sheet TDC
D1: Annualization: | E1: 365
B2: Traffic Group | C2: # of Bridges | D2: AADT | E2: Annual Trips | F2: % Cars | G2: % Trucks
B3: 1.1 | C3: ='Traffic Groups'!I2 -> 2 | D3: ='Traffic Groups'!K2 -> 100 | E3: =D3*$E$1 -> 36500 | F3: =1-G3 -> 0.88 | G3: ='Traffic Groups'!L2 -> 0.12
B4: 1.2 | C4: ='Traffic Groups'!I3 -> 2 | D4: ='Traffic Groups'!K3 -> 100 | E4: =D4*$E$1 -> 36500 | F4: =1-G4 -> 0.88 | G4: ='Traffic Groups'!L3 -> 0.12
B5: 2.1 | C5: ='Traffic Groups'!I4 -> 4 | D5: ='Traffic Groups'!K4 -> 150 | E5: =D5*$E$1 -> 54750 | F5: 0.88 | G5: ='Traffic Groups'!L4 -> 0.12
B6: 2.2 | C6: ='Traffic Groups'!I5 -> 4 | D6: ='Traffic Groups'!K5 -> 150 | E6: =D6*$E$1 -> 54750 | F6: 0.88 | G6: ='Traffic Groups'!L5 -> 0.12
B7: 3 | C7: ='Traffic Groups'!I6 -> 7 | D7: ='Traffic Groups'!K6 -> 6000 | E7: 2190000 | F7: 0.88 | G7: ='Traffic Groups'!L6 -> 0.12

Sheet Traffic Groups
A1: Traffic Group | B1: Bridge ID (1) | C1: Bridge ID (2) | D1: Bridge ID (3) | E1: Bridge ID (4) | F1: Bridge ID (5) | G1: Bridge ID (6) | H1: Bridge ID (7) | I1: Bridge Count | J1: Detour Length | K1: ADT | L1: % Truck Traffic | M1: Current Year | N1: Yrs to 20T Post | O1: Yrs to Closed
A2: 1.1 | B2: 13079 | C2: 10053 | I2: =COUNT(B2:H2) -> 2 | J2: =B13 -> 3.6 | K2: =B11 -> 100 | L2: 0.12 | M2: 2018 | N2: ='Bridge List'!$M$2 -> 5 | O2: ='Bridge List'!$M$3 -> 15
A3: 1.2 | B3: 13079 | C3: 10053 | I3: =COUNT(B3:H3) -> 2 | J3: =C13 -> 3.6 | K3: =C11 -> 100 | L3: 0.12 | M3: 2018 | N3: ='Bridge List'!$M$2 -> 5 | O3: ='Bridge List'!$M$3 -> 15
A4: 2.1 | B4: 13079 | C4: 10053 | D4: 12934 | E4: 12980 | I4: 4 | J4: =D13 -> 1.9 | K4: =D11 -> 150 | L4: 0.12 | M4: 2018 | N4: ='Bridge List'!$M$2 -> 5 | O4: ='Bridge List'!$M$3 -> 15
A5: 2.2 | B5: 13079 | C5: 10053 | D5: 12934 | E5: 12980 | I5: 4 | J5: =E13 -> 1.9 | K5: =E11 -> 150 | L5: 0.12 | M5: 2018 | N5: ='Bridge List'!$M$2 -> 5 | O5: ='Bridge List'!$M$3 -> 15
A6: 3 | B6: 13079 | C6: 10053 | D6: 12934 | E6: 12980 | F6: 13653 | G6: 13925 | H6: 13783 | I6: 7 | J6: 3.1 | K6: =F11 -> 6000 | L6: 0.12 | M6: 2018 | N6: ='Bridge List'!$M$2 -> 5 | O6: ='Bridge List'!$M$3 -> 15
B9: Traffic Group #1 | D9: Traffic Group #2 | F9: Traffic Group #3
A10: Traffic Flow | B10: From Seminole to exit after bridge 10053 | C10: Exit after bridge 10053 to Seminole | D10: From Seminole to Lima (2.1) | E10: From Lima to Seminole (2.2) | F10: From Seminole / Wewoka & Wewoka to Seminole (3) | G10: Total | K10: Illustration of Traffic Groups
A11: 2018 AADT | B11: 100 | C11: 100 | D11: 150 | E11: 150 | F11: 6000 | G11: =SUM(B11:F11) -> 6500 | K11: TG #2 | L11: TG #1 | M11: TG #3 | N11: SEMINOLE | O11: TG #3 | P11: TG #1 | Q11: TG #2
A12: Bridge # | B12: Detour Length | K12: 150 | L12: 100 | M12: 3000 | N12: =SUM(K12,L12,M12,O12,P12,Q12) -> 6500 | O12: 3000 | P12: 100 | Q12: 150
A13: 13079 | B13: =A23-A22 -> 3.6 | C13: =A23-A22 -> 3.6 | D13: =A27-A26 -> 1.9 | E13: =A27-A26 -> 1.9 | F13: =A32-A31 -> 3.1
A14: 10053
A15: 12934
A16: 12980 | N16: Exit after 10053
A17: 13653 | N17: =SUM(K12,M12,O12,Q12) -> 6300
A18: 13925
A19: 13783
A21: Miles | B21: Traffic Group #1 (200 AADT: 2018)
A22: 2 | B22: Seminole, OK to exit after bridge 10053 (US 270) (35.217488, -96.638443) | N22: Lima
A23: 5.6 | B23: Seminole, OK to exit after bridge 10053 (Local Detour) (35.217488, -96.638443) | N23: =SUM(M12,O12) -> 6000
A25: Miles | B25: Traffic Group # 2 (300 AADT: 2018)
A26: 6 | B26: Seminole, OK to Lima, OK (US 270)
A27: 7.9 | B27: Seminole, OK to Lima, OK (Local Detour) | N27: WEWOKA
B29: Traffic Group #3 (6,000 AADT: 2018) | M29: TG #1 | N29: Traffic Group #1
A30: Miles | B30: 6,000 AADT | M30: TG #2 | N30: Traffic Group #2
A31: 10.7 | B31: US 270 | M31: TG #3 | N31: Traffic Group #3
A32: 13.8 | B32: Detour

Sheet Fixed Factors
A1: Fixed Factors
A2: Facility | B2: Mode | C2: Purpose | D2: Vehicle Operating Cost $/Mile (Free Flow) | E2: Vehicle Operating Cost $/Mile (Congested) | F2: Vehicle Operating Cost $/hour (Congested or Idle) | G2: $ per Fatality | H2: $ per Personal Injury | I2: $ per Property Damage Accident
A3: Road | B3: Passenger Car | C3: All (Personal) | D3: 0.2905666667 | E3: 0.2905666667 | F3: 10.1698 | G3: 9600000 | H3: 174000 | I3: 4327
A4: Road | B4: All Trucks | C4: Freight | D4: 0.563 | E4: 0.563 | F4: 22.507 | G4: 9600000 | H4: 174000 | I4: 4327
A6: Facility | B6: Mode | C6: Purpose | D6: Avg. Fuel Consump. Gallon/Mile (FF) | E6: Avg. Fuel Consump. Gallon/Mile (Cong.) | F6: Avg. Fuel Consump. Gallon/hr (Cong. or Idle) | H6: Fuel Type | I6: $ per Gallon
A7: Road | B7: Passenger Car | C7: All (Personal) | D7: 0.046296296 | E7: 0.053240741 | F7: 1.863425926 | H7: Diesel | I7: 3 | J7: https://gasprices.aaa.com/?state=OK (Nov. 2018)
A8: Road | B8: All Trucks | C8: Freight | D8: 0.15625 | E8: 0.21875 | F8: 9.84375 | H8: Gasoline | I8: 2.34 | J8: https://gasprices.aaa.com/?state=OK (Nov. 2018)
A11: Mode | B11: Purpose | C11: Value Per Hr (per occupant) | D11: Buffer Time ($hr per) | G11: Mode | H11: Purpose | I11: Avg. Occupancy | J11: Freight Tons per Veh. | K11: Freight Logistics Factor ($/hr per U.S. Ton)
A12: Passenger Car | B12: All (Personal) | C12: 14.2 | D12: =C12 -> 14.2 | E12: Per Occupant | G12: Passenger Car | H12: All (Personal) | I12: 1.39
A13: All Trucks | B13: Freight | C13: 28.6 | D13: =(I13*C13)+(J13*K13) -> 68.7635 | E13: Per Crew Member | G13: All Trucks | H13: Freight | I13: 1 | J13: 24.05 | K13: 1.67
C16: Purpose | D16: Tons* per VMT VOC | E16: Tons per VMT NOX | F16: Tons per VMT SOX | G16: Tons per VMT PM | H16: Notes:
C17: Personal/Auto | D17: 1.139789895e-06 | E17: 7.639017378e-07 | F17: 0 | G17: 4.6848231e-09 | H17: SOX emissions for cars are negligible
C18: Freight/Truck | D18: 4.927331556e-07 | E18: 9.494207313e-06 | F18: 6.2831745e-09 | G18: 2.320365308e-07
C19: * U.S. Short Tons
C20: Purpose | D20: Tons per VMT Congested VOC | E20: Tons per VMT Congested NOX | F20: Tons per VMT Congested SOX | G20: Tons per VMT Congested PM | H20: Notes:
C21: Personal/Auto | D21: 1.139790015e-06 | E21: 7.639019941e-07 | F21: 0 | G21: 4.684820087e-09 | H21: SOX emissions for cars are negligible
C22: Freight/Truck | D22: 6.898259812e-07 | E22: 1.329190036e-05 | F22: 8.796440021e-09 | G22: 3.24850987e-07
C24: Monetary Value of Emissions (2017$/VMT)
C25: Purpose | D25: $ per VMT | E25: $ per VMT Congested
C26: Personal/Auto | D26: =SUMPRODUCT(D17:G17,$C$35:$F$35) -> 0.009515639012 | E26: =SUMPRODUCT(D21:G21,$C$35:$F$35) -> 0.009515640131
C27: Freight/Truck | D27: =SUMPRODUCT(D18:G18,$C$35:$F$35) -> 0.1521910587 | E27: =SUMPRODUCT(D22:G22,$C$35:$F$35) -> 0.2130675035
C29: Purpose | D29: Tons per VHT (Congested) VOC | E29: Tons per VHT (Congested) NOX | F29: Tons per VHT (Congested) SOX | G29: Tons per VHT (Congested) PM | H29: Notes:
C30: Personal/Auto | D30: 3.419369932e-06 | E30: 2.291709961e-06 | F30: 0 | G30: 1.405449979e-08 | H30: SOX emissions for cars are negligible
C31: Freight/Truck | D31: 2.069479933e-06 | E31: 3.987570017e-05 | F31: 2.638929963e-08 | G31: 9.745530178e-07 | H31: Trucks emit lower levels of VOC on average than cars because of engine and fuel type
C33: Monetary Value of Emissions (2017$/short ton)
C34: VOCs | D34: NOx | E34: SOx | F34: PM
C35: 1905 | D35: 7508 | E35: 44373 | F35: 343442
C36: Source: USDOT BCA Guidance
C38: Monetary Value of Emissions (2017$/hour of delay)
C39: Purpose | D39: $ per VHT
C40: Personal/Auto | D40: =SUMPRODUCT(D30:G30,$C$35:$F$35) -> 0.02854696363
C41: Freight/Truck | D41: =SUMPRODUCT(D31:G31,$C$35:$F$35) -> 0.6392025261

Sheet Bridge List
A1: Bridge | B1: Current Year | C1: Yrs to 20T Post | D1: Yrs to Closed | E1: Constr Str Yr | F1: Constr End Yr | G1: Expected Life | H1: Improvement Type | L1: All Bridges posted & closed at the same date (single corridor):
A2: 13079 | B2: 2018 | C2: =$M$2 -> 5 | D2: =$M$3 -> 15 | E2: =$M$6 -> 2020 | F2: =$M$7 -> 2022 | G2: 75 | H2: Replacement | L2: Yrs to 20T Post | M2: 5
A3: 10053 | B3: 2018 | C3: =$M$2 -> 5 | D3: =$M$3 -> 15 | E3: =$M$6 -> 2020 | F3: =$M$7 -> 2022 | G3: 75 | H3: Replacement | L3: Yrs to Closed | M3: 15
A4: 13653 | B4: 2018 | C4: 5 | D4: 15 | E4: 2020 | F4: 2022 | G4: 75 | H4: Replacement
A5: 13925 | B5: 2018 | C5: 5 | D5: 15 | E5: 2020 | F5: 2022 | G5: 75 | H5: Replacement | L5: Uniform Construction Period for All Bridges in Bundle:
A6: 12934 | B6: 2018 | C6: 5 | D6: 15 | E6: 2020 | F6: 2022 | G6: 75 | H6: Replacement | L6: Constr Str Yr | M6: 2020
A7: 12980 | B7: 2018 | C7: 5 | D7: 15 | E7: 2020 | F7: 2022 | G7: 30 | H7: Rehabilitation | L7: Constr End Yr | M7: 2022
A8: 13783 | B8: 2018 | C8: 5 | D8: 15 | E8: 2020 | F8: 2022 | G8: 30 | H8: Rehabilitation

Sheet Capital Costs
A1: Total Bridge & Pavement Costs
A2: Year | B2: 13079 | C2: 10053 | D2: 13653 | E2: 13925 | F2: 12934 | G2: 12980 | H2: 13783 | I2: Combined Total
A3: 2017 | B3: 298381.1068 | C3: 228604.4668 | D3: 273297.825 | E3: 438109.155 | F3: 213484.6587 | G3: 192632.6487 | H3: 207372.8487 | I3: =SUM(B3:H3) -> 1851882.71 | J3: Right of Way, Utilities, & Engineering
A4: 2018 | B4: 0 | C4: 0 | D4: 0 | E4: 0 | F4: 0 | G4: 0 | H4: 0 | I4: 0
A5: 2019 | B5: 34762.66684 | C5: 27009.70684 | D5: 31123.555 | E5: 49435.925 | F5: 34235.09921 | G5: 31918.20921 | H5: 33556.00921 | I5: =SUM(B5:H5) -> 242041.1713 | J5: Right of Way, Utilities, & Engineering
A6: 2020 | B6: 729219.4233 | C6: 499214.9433 | D6: 905664.2467 | E6: 1448931.223 | F6: 319583.87 | G6: 250849.4667 | H6: 299437.5333 | I6: =SUM(B6:H6) -> 4452900.707 | J6: Bridge Construction & for Bridges 13653 & 13925 Pavement Reconstruction
A7: 2021 | B7: 729219.4233 | C7: 499214.9433 | D7: 785865.8467 | E7: 1329132.823 | F7: 319583.87 | G7: 250849.4667 | H7: 299437.5333 | I7: =SUM(B7:H7) -> 4213303.907 | J7: Bridge Construction
A8: 2022 | B8: 729219.4233 | C8: 499214.9433 | D8: 785865.8467 | E8: 1329132.823 | F8: 319583.87 | G8: 250849.4667 | H8: 299437.5333 | I8: 4213303.907 | J8: Bridge Construction
A9: 2023 | B9: 0 | C9: 0 | D9: 0 | E9: 0 | F9: 0 | G9: 0 | H9: 0 | I9: 0
A10: 2024 | B10: 0 | C10: 0 | D10: 0 | E10: 0 | F10: 0 | G10: 0 | H10: 0 | I10: 0
A11: 2025 | B11: 0 | C11: 0 | D11: 0 | E11: 0 | F11: 0 | G11: 0 | H11: 0 | I11: 0
A12: 2026 | B12: 0 | C12: 0 | D12: 0 | E12: 0 | F12: 0 | G12: 0 | H12: 0 | I12: 0
A13: 2027 | B13: 0 | C13: 0 | D13: 0 | E13: 0 | F13: 0 | G13: 0 | H13: 0 | I13: 0
A14: 2028 | B14: 0 | C14: 0 | D14: 0 | E14: 0 | F14: 0 | G14: 0 | H14: 0 | I14: 0
A15: 2029 | B15: 0 | C15: 0 | D15: 0 | E15: 0 | F15: 0 | G15: 0 | H15: 0 | I15: 0
A16: 2030 | B16: 0 | C16: 0 | D16: 0 | E16: 0 | F16: 0 | G16: 0 | H16: 0 | I16: 0
A17: 2031 | B17: 0 | C17: 0 | D17: 0 | E17: 0 | F17: 0 | G17: 0 | H17: 0 | I17: 0
A18: 2032 | B18: 0 | C18: 0 | D18: 0 | E18: 0 | F18: 0 | G18: 0 | H18: 0 | I18: 0
A19: 2033 | B19: 0 | C19: 0 | D19: 0 | E19: 0 | F19: 0 | G19: 0 | H19: 0 | I19: 0
A20: 2034 | B20: 0 | C20: 0 | D20: 0 | E20: 0 | F20: 0 | G20: 0 | H20: 0 | I20: 0
A21: 2035 | B21: 0 | C21: 0 | D21: 0 | E21: 0 | F21: 0 | G21: 0 | H21: 0 | I21: 0
A22: 2036 | B22: 0 | C22: 0 | D22: 0 | E22: 0 | F22: 0 | G22: 0 | H22: 0 | I22: 0
A23: 2037 | B23: 0 | C23: 0 | D23: 0 | E23: 0 | F23: 0 | G23: 0 | H23: 0 | I23: 0
A24: 2038 | B24: 0 | C24: 0 | D24: 0 | E24: 0 | F24: 0 | G24: 0 | H24: 0 | I24: 0
A25: 2039 | B25: 0 | C25: 0 | D25: 0 | E25: 0 | F25: 0 | G25: 0 | H25: 0 | I25: 0
A26: 2040 | B26: 0 | C26: 0 | D26: 0 | E26: 0 | F26: 0 | G26: 0 | H26: 0 | I26: 0
A27: 2041 | B27: 0 | C27: 0 | D27: 0 | E27: 0 | F27: 0 | G27: 0 | H27: 0 | I27: 0
A28: 2042 | B28: 0 | C28: 0 | D28: 0 | E28: 0 | F28: 0 | G28: 0 | H28: 0 | I28: 0
A29: 2043 | B29: 0 | C29: 0 | D29: 0 | E29: 0 | F29: 0 | G29: 0 | H29: 0 | I29: 0
A30: 2044 | B30: 0 | C30: 0 | D30: 0 | E30: 0 | F30: 0 | G30: 0 | H30: 0 | I30: 0
A31: 2045 | B31: 0 | C31: 0 | D31: 0 | E31: 0 | F31: 0 | G31: 0 | H31: 0 | I31: 0
A32: 2046 | B32: 0 | C32: 0 | D32: 0 | E32: 0 | F32: 0 | G32: 0 | H32: 0 | I32: 0
A33: 2047 | B33: 0 | C33: 0 | D33: 0 | E33: 0 | F33: 0 | G33: 0 | H33: 0 | I33: 0
A34: 2048 | B34: 0 | C34: 0 | D34: 0 | E34: 0 | F34: 0 | G34: 0 | H34: 0 | I34: 0
A35: 2049 | B35: 0 | C35: 0 | D35: 0 | E35: 0 | F35: 0 | G35: 0 | H35: 0 | I35: 0
A36: 2050 | B36: 0 | C36: 0 | D36: 0 | E36: 0 | F36: 0 | G36: 0 | H36: 0 | I36: 0
A37: Total | B37: =SUM(B3:B36) -> 2520802.044 | C37: =SUM(C3:C36) -> 1753259.004 | D37: 2781817.32 | E37: 4594741.95 | F37: 1206471.368 | G37: 977099.2579 | H37: 1139241.458 | I37: 14973432.4

Sheet O&M Costs
C2: Bridge and Pavement O&M Costs- Unimproved
B3: Year | C3: 13079 | D3: 10053 | E3: 12934 | F3: 12980 | G3: 13653 | H3: 13925 | I3: 13783 | K3: Annual Bridge O&M (Unimproved) | L3: 4504
B4: 2018 | C4: =$L$3 -> 4504 | D4: 4504 | E4: 4504 | F4: 4504 | G4: =$L$3 -> 4504 | H4: 4504 | I4: =$L$3 -> 4504 | K4: Annual Bridge O&M (Improved) | L4: =4504*0.1 -> 450.4
B5: 2019 | C5: 4504 | D5: 4504 | E5: 4504 | F5: 4504 | G5: =$L$3+$L$6 -> 27583.4 | H5: =$L$3+$L$6 -> 27583.4 | I5: =$L$3 -> 4504
B6: 2020 | C6: 4504 | D6: 4504 | E6: 4504 | F6: 4504 | G6: =$L$3 -> 4504 | H6: =$L$3 -> 4504 | I6: =$L$3 -> 4504 | K6: Additional Pavement Maintenance - Minor Rehab | L6: 23079.4
B7: 2021 | C7: 4504 | D7: 4504 | E7: 4504 | F7: 4504 | G7: =$L$3 -> 4504 | H7: =$L$3 -> 4504 | I7: =$L$3 -> 4504 | K7: Additional Pavement Maintenance - Preventative | L7: 7133.4
B8: 2022 | C8: =$L$3 -> 4504 | D8: 4504 | E8: 4504 | F8: 4504 | G8: 4504 | H8: 4504 | I8: 4504
B9: 2023 | C9: 4504 | D9: 4504 | E9: 4504 | F9: 4504 | G9: 4504 | H9: 4504 | I9: 4504 | K9: Indicates Years and Bridge w/ Additional Maintenance
B10: 2024 | C10: 4504 | D10: 4504 | E10: 4504 | F10: 4504 | G10: 4504 | H10: 4504 | I10: 4504
B11: 2025 | C11: 4504 | D11: 4504 | E11: 4504 | F11: 4504 | G11: =$L$3+$L$6 -> 27583.4 | H11: =$L$3+$L$6 -> 27583.4 | I11: 4504
B12: 2026 | C12: 4504 | D12: 4504 | E12: 4504 | F12: 4504 | G12: 4504 | H12: 4504 | I12: 4504
B13: 2027 | C13: 4504 | D13: 4504 | E13: 4504 | F13: 4504 | G13: 4504 | H13: 4504 | I13: 4504
B14: 2028 | C14: 4504 | D14: 4504 | E14: 4504 | F14: 4504 | G14: 4504 | H14: 4504 | I14: 4504
B15: 2029 | C15: 4504 | D15: 4504 | E15: 4504 | F15: 4504 | G15: 4504 | H15: 4504 | I15: 4504
B16: 2030 | C16: 4504 | D16: 4504 | E16: 4504 | F16: 4504 | G16: 4504 | H16: 4504 | I16: 4504
B17: 2031 | C17: 4504 | D17: 4504 | E17: 4504 | F17: 4504 | G17: 4504 | H17: 4504 | I17: 4504
B18: 2032 | C18: 4504 | D18: 4504 | E18: 4504 | F18: 4504 | G18: 4504 | H18: 4504 | I18: 4504
B19: 2033 | C19: 4504 | D19: 4504 | E19: 4504 | F19: 4504 | G19: 4504 | H19: 4504 | I19: 4504 | J19: All Bridges Closed
B20: 2034 | G20: 0 | H20: 0
B21: 2035 | G21: 0 | H21: 0
B22: 2036 | G22: 0 | H22: 0
B23: 2037 | G23: 0 | H23: 0
B24: 2038 | G24: 0 | H24: 0
B25: 2039 | G25: 0 | H25: 0
B26: 2040 | G26: 0 | H26: 0
B27: 2041 | G27: 0 | H27: 0
B28: 2042 | G28: 0 | H28: 0
B29: 2043 | G29: 0 | H29: 0
B30: 2044 | G30: 0 | H30: 0
B31: 2045 | G31: 0 | H31: 0
B32: 2046 | G32: 0 | H32: 0
B33: 2047 | G33: 0 | H33: 0
B34: 2048 | G34: 0 | H34: 0
B35: 2049 | G35: 0 | H35: 0
B36: 2050 | G36: 0 | H36: 0
C39: Bridge and Pavement O&M Costs- Improved
B40: Year | C40: 13079 | D40: 10053 | E40: 12934 | F40: 12980 | G40: 13653 | H40: 13925 | I40: 13783
B41: 2018 | C41: =$L$3 -> 4504 | D41: 4504 | E41: 4504 | F41: 4504 | G41: =$L$3 -> 4504 | H41: 4504 | I41: =$L$3 -> 4504
B42: 2019 | C42: 4504 | D42: 4504 | E42: 4504 | F42: 4504 | G42: 4504 | H42: 4504 | I42: =$L$3 -> 4504
B43: 2020 | C43: 0 | D43: 0 | E43: 0 | F43: 0 | G43: 0 | H43: 0 | I43: 0 | J43: Construction period
B44: 2021 | C44: 0 | D44: 0 | E44: 0 | F44: 0 | G44: 0 | H44: 0 | I44: 0 | J44: Construction period
B45: 2022 | C45: 0 | D45: 0 | E45: 0 | F45: 0 | G45: 0 | H45: 0 | I45: 0 | J45: Construction period
B46: 2023 | C46: =$L$4 -> 450.4 | D46: =$L$4 -> 450.4 | E46: 450.4 | F46: 450.4 | G46: 450.4 | H46: 450.4 | I46: 450.4
B47: 2024 | C47: =$L$4 -> 450.4 | D47: 450.4 | E47: 450.4 | F47: 450.4 | G47: 450.4 | H47: 450.4 | I47: 450.4
B48: 2025 | C48: 450.4 | D48: 450.4 | E48: 450.4 | F48: 450.4 | G48: 450.4 | H48: 450.4 | I48: 450.4
B49: 2026 | C49: 450.4 | D49: 450.4 | E49: 450.4 | F49: 450.4 | G49: 450.4 | H49: 450.4 | I49: 450.4
B50: 2027 | C50: 450.4 | D50: 450.4 | E50: 450.4 | F50: 450.4 | G50: 450.4 | H50: 450.4 | I50: 450.4
B51: 2028 | C51: 450.4 | D51: 450.4 | E51: 450.4 | F51: 450.4 | G51: 450.4 | H51: 450.4 | I51: 450.4
B52: 2029 | C52: 450.4 | D52: 450.4 | E52: 450.4 | F52: 450.4 | G52: 450.4 | H52: 450.4 | I52: 450.4
B53: 2030 | C53: 450.4 | D53: 450.4 | E53: 450.4 | F53: 450.4 | G53: 450.4 | H53: 450.4 | I53: 450.4
B54: 2031 | C54: 450.4 | D54: 450.4 | E54: 450.4 | F54: 450.4 | G54: =$L$4+$L$7 -> 7583.8 | H54: =$L$4+$L$7 -> 7583.8 | I54: 450.4 | J54: Pavement: Preventative Maintenance
B55: 2032 | C55: 450.4 | D55: 450.4 | E55: 450.4 | F55: 450.4 | G55: 450.4 | H55: 450.4 | I55: 450.4
B56: 2033 | C56: 450.4 | D56: 450.4 | E56: 450.4 | F56: 450.4 | G56: 450.4 | H56: 450.4 | I56: 450.4
B57: 2034 | C57: 450.4 | D57: 450.4 | E57: 450.4 | F57: 450.4 | G57: 450.4 | H57: 450.4 | I57: 450.4
B58: 2035 | C58: 450.4 | D58: 450.4 | E58: 450.4 | F58: 450.4 | G58: =$L$4+$L$7 -> 7583.8 | H58: 7583.8 | I58: 450.4 | J58: Pavement: Preventative Maintenance
B59: 2036 | C59: 450.4 | D59: 450.4 | E59: 450.4 | F59: 450.4 | G59: 450.4 | H59: 450.4 | I59: 450.4
B60: 2037 | C60: 450.4 | D60: 450.4 | E60: 450.4 | F60: 450.4 | G60: 450.4 | H60: 450.4 | I60: 450.4
B61: 2038 | C61: 450.4 | D61: 450.4 | E61: 450.4 | F61: 450.4 | G61: 450.4 | H61: 450.4 | I61: 450.4
B62: 2039 | C62: 450.4 | D62: 450.4 | E62: 450.4 | F62: 450.4 | G62: 450.4 | H62: 450.4 | I62: 450.4
B63: 2040 | C63: 450.4 | D63: 450.4 | E63: 450.4 | F63: 450.4 | G63: 450.4 | H63: 450.4 | I63: 450.4
B64: 2041 | C64: 450.4 | D64: 450.4 | E64: 450.4 | F64: 450.4 | G64: 450.4 | H64: 450.4 | I64: 450.4
B65: 2042 | C65: 450.4 | D65: 450.4 | E65: 450.4 | F65: 450.4 | G65: 450.4 | H65: 450.4 | I65: 450.4
B66: 2043 | C66: 450.4 | D66: 450.4 | E66: 450.4 | F66: 450.4 | G66: 450.4 | H66: 450.4 | I66: 450.4
B67: 2044 | C67: 450.4 | D67: 450.4 | E67: 450.4 | F67: 450.4 | G67: 450.4 | H67: 450.4 | I67: 450.4
B68: 2045 | C68: 450.4 | D68: 450.4 | E68: 450.4 | F68: 450.4 | G68: 450.4 | H68: 450.4 | I68: 450.4
B69: 2046 | C69: 450.4 | D69: 450.4 | E69: 450.4 | F69: 450.4 | G69: =$L$3+$L$6 -> 27583.4 | H69: =$L$3+$L$6 -> 27583.4 | I69: 450.4 | J69: Pavement: Minor Rehabilitation
B70: 2047 | C70: 450.4 | D70: 450.4 | E70: 450.4 | F70: 450.4 | G70: 450.4 | H70: 450.4 | I70: 450.4
B71: 2048 | C71: 450.4 | D71: 450.4 | E71: 450.4 | F71: 450.4 | G71: 450.4 | H71: 450.4 | I71: 450.4
B72: 2049 | C72: 450.4 | D72: 450.4 | E72: 450.4 | F72: 450.4 | G72: 450.4 | H72: 450.4 | I72: 450.4
B73: 2050 | C73: 450.4 | D73: 450.4 | E73: 450.4 | F73: 450.4 | G73: 450.4 | H73: 450.4 | I73: 450.4

Sheet Shipper-Logistics Costs
B3: Commodity Profile from FHWA Freight Analysis Framework (FAF) for Oklahoma City Combined Statistics Area (CSA) - 2016 | V3: Only Use to Verify Calculations on "Benefit Calculations" tab
B4: Freight Vehicle Commodity Mix Breakout | G4: Assumptions | K4: Bump Factor to change commodity sensitivity | P4: Model Inputs (By Year) | W4: Truck | Y4: Rail | AB4: Single Year Cost Savings Estimate
B5: SCTG2 | C5: SCTG Description | D5: Truck-Commodity Mix | E5: Rail-Commodity Mix | G5: Freight Tons Per Veh | H5: Truck | I5: 24.05 | P5: In 2050: | R5: Base | S5: Project | U5: SCTG2 | V5: SCTG Description | W5: Base | X5: Project | Y5: Base | Z5: Project
B6: 1 | C6: Live animals/fish | D6: 0.008814407296 | K6: SCTG | L6: 1 | M6: Live animals/fish | N6: 1.5 | P6: Vehicle VHT | Q6: Truck | R6: 0 | S6: ='Traffic Group Benefits'!J40 -> 24115.25511 | U6: 1 | V6: Live animals/fish | W6: =R$6*$I$5*$I$7*$D6*$N6 -> 0 | X6: =S$6*$I$5*$I$7*$D6*$N6 -> 12801.9975 | Y6: =R$7*$I$6*$I$8*$E6*$N6 -> 0 | Z6: 0 | AB6: Truck Freight Cost Savings | AC6: =SUM(W6:W48)-SUM(X6:X48) -> -660789.3135
B7: 2 | C7: Cereal grains | D7: 0.01428626119 | G7: Cost Per Freight Ton Hour | H7: Truck | I7: 1.6695 | K7: SCTG | L7: 2 | M7: Cereal grains | N7: 0.53 | U7: 2 | V7: Cereal grains | W7: =R$6*$I$5*$I$7*$D7*$N7 -> 0 | X7: 7331.415275 | Y7: 0 | Z7: 0
B8: 3 | C8: Other ag prods. | D8: 0.006527871902 | K8: SCTG | L8: 3 | M8: Other ag prods. | N8: 0.83 | U8: 3 | V8: Other ag prods. | W8: 0 | X8: 5246.178709 | Y8: 0 | Z8: 0
B9: 4 | C9: Animal feed | D9: 0.04422796637 | K9: SCTG | L9: 4 | M9: Animal feed | N9: 0.68 | U9: 4 | V9: Animal feed | W9: 0 | X9: 29120.5282 | Y9: 0 | Z9: 0
B10: 5 | C10: Meat/seafood | D10: 0.008143387022 | K10: SCTG | L10: 5 | M10: Meat/seafood | N10: 1.87 | U10: 5 | V10: Meat/seafood | W10: 0 | X10: =S$6*$I$5*$I$7*$D10*$N10 -> 14744.8394 | Y10: 0 | Z10: 0
B11: 6 | C11: Milled grain prods. | D11: 0.00383068615 | K11: SCTG | L11: 6 | M11: Milled grain prods. | N11: 0.91 | U11: 6 | V11: Milled grain prods. | W11: 0 | X11: 3375.291832 | Y11: 0 | Z11: 0
B12: 7 | C12: Other foodstuffs | D12: 0.03705381905 | K12: SCTG | L12: 7 | M12: Other foodstuffs | N12: 1.01 | U12: 7 | V12: Other foodstuffs | W12: 0 | X12: 36236.62275 | Y12: 0 | Z12: 0
B13: 8 | C13: Alcoholic beverages | D13: 0.007684350559 | K13: SCTG | L13: 8 | M13: Alcoholic beverages | N13: 1.38 | U13: 8 | V13: Alcoholic beverages | W13: 0 | X13: 10267.85247 | Y13: 0 | Z13: 0
B14: 9 | C14: Tobacco prods. | D14: 3.070621626e-05 | K14: SCTG | L14: 9 | M14: Tobacco prods. | N14: 1.5 | U14: 9 | V14: Tobacco prods. | W14: 0 | X14: 44.59754249 | Y14: 0 | Z14: 0
B15: 10 | C15: Building stone | D15: 0.002628035571 | K15: SCTG | L15: 10 | M15: Building stone | N15: 1.42 | U15: 10 | V15: Building stone | W15: 0 | X15: 3613.374274 | Y15: 0 | Z15: 0
B16: 11 | C16: Natural sands | D16: 0.2083540602 | K16: SCTG | L16: 11 | M16: Natural sands | N16: 0.18 | U16: 11 | V16: Natural sands | W16: 0 | X16: 36313.47728 | Y16: 0 | Z16: 0
B17: 12 | C17: Gravel | D17: 0.2028326705 | K17: SCTG | L17: 12 | M17: Gravel | N17: 0.14 | U17: 12 | V17: Gravel | W17: 0 | X17: 27495.35358 | Y17: 0 | Z17: 0
B18: 13 | C18: Nonmetallic minerals | D18: 0.01017603979 | K18: SCTG | L18: 13 | M18: Nonmetallic minerals | N18: 0.39 | U18: 13 | V18: Nonmetallic minerals | W18: 0 | X18: 3842.702545 | Y18: 0 | Z18: 0
B19: 14 | C19: Metallic ores | D19: 0.0001963894229 | K19: SCTG | L19: 14 | M19: Metallic ores | N19: 0.18 | U19: 14 | V19: Metallic ores | W19: 0 | X19: 34.22819232 | Y19: 0 | Z19: 0
B20: 15 | C20: Coal | D20: 0.003236271263 | K20: SCTG | L20: 15 | M20: Coal | N20: 0.3 | U20: 15 | V20: Coal | W20: 0 | X20: 940.0685773 | Y20: 0 | Z20: 0
B21: 16 | C21: Crude petroleum | D21: 0.0005819312639 | K21: SCTG | L21: 16 | M21: Crude petroleum | N21: 0.5 | U21: 16 | V21: Crude petroleum | W21: 0 | X21: 281.7312739 | Y21: 0 | Z21: 0
B22: 17 | C22: Gasoline | D22: 0.06583639359 | K22: SCTG | L22: 17 | M22: Gasoline | N22: 0.71 | U22: 17 | V22: Gasoline | W22: 0 | X22: 45260.33314 | Y22: 0 | Z22: 0
B23: 18 | C23: Fuel oils | D23: 0.01320285474 | K23: SCTG | L23: 18 | M23: Fuel oils | N23: 0.58 | U23: 18 | V23: Fuel oils | W23: 0 | X23: 7414.625206 | Y23: 0 | Z23: 0
B24: 19 | C24: Coal-n.e.c. | D24: 0.04975940037 | K24: SCTG | L24: 19 | M24: Coal-n.e.c. | N24: 0.63 | U24: 19 | V24: Coal-n.e.c. | W24: 0 | X24: 30353.51932 | Y24: 0 | Z24: 0
B25: 20 | C25: Basic chemicals | D25: 0.00717979538 | K25: SCTG | L25: 20 | M25: Basic chemicals | N25: 0.89 | U25: 20 | V25: Basic chemicals | W25: 0 | X25: 6187.21829 | Y25: 0 | Z25: 0
B26: 21 | C26: Pharmaceuticals | D26: 0.00192561951 | K26: SCTG | L26: 21 | M26: Pharmaceuticals | N26: 5 | U26: 21 | V26: Pharmaceuticals | W26: 0 | X26: 9322.531219 | Y26: 0 | Z26: 0
B27: 22 | C27: Fertilizers | D27: 0.006338933489 | K27: SCTG | L27: 22 | M27: Fertilizers | N27: 0.48 | U27: 22 | V27: Fertilizers | W27: 0 | X27: 2946.122474 | Y27: 0 | Z27: 0
B28: 23 | C28: Chemical prods. | D28: 0.003073270812 | K28: SCTG | L28: 23 | M28: Chemical prods. | N28: 1.78 | U28: 23 | V28: Chemical prods. | W28: 0 | X28: 5296.807602 | Y28: 0 | Z28: 0
B29: 24 | C29: Plastics/rubber | D29: 0.01889630588 | K29: SCTG | L29: 24 | M29: Plastics/rubber | N29: 1.59 | U29: 24 | V29: Plastics/rubber | W29: 0 | X29: 29091.58605 | Y29: 0 | Z29: 0
B30: 25 | C30: Logs | D30: 0.0009902737259 | K30: SCTG | L30: 25 | M30: Logs | N30: 0.89 | U30: 25 | V30: Logs | W30: 0 | X30: 853.3724688 | Y30: 0 | Z30: 0
B31: 26 | C31: Wood prods. | D31: 0.01330959846 | K31: SCTG | L31: 26 | M31: Wood prods. | N31: 0.99 | U31: 26 | V31: Wood prods. | W31: 0 | X31: 12758.32064 | Y31: 0 | Z31: 0
B32: 27 | C32: Newsprint/paper | D32: 0.003132299816 | K32: SCTG | L32: 27 | M32: Newsprint/paper | N32: 1.24 | U32: 27 | V32: Newsprint/paper | W32: 0 | X32: 3760.783864 | Y32: 0 | Z32: 0
B33: 28 | C33: Paper articles | D33: 0.003653417302 | K33: SCTG | L33: 28 | M33: Paper articles | N33: 1.28 | U33: 28 | V33: Paper articles | W33: 0 | X33: 4527.960353 | Y33: 0 | Z33: 0
B34: 29 | C34: Printed prods. | D34: 0.003374105849 | K34: SCTG | L34: 29 | M34: Printed prods. | N34: 1.03 | U34: 29 | V34: Printed prods. | W34: 0 | X34: 3365.032725 | Y34: 0 | Z34: 0
B35: 30 | C35: Textiles/leather | D35: 0.0007923638887 | K35: SCTG | L35: 30 | M35: Textiles/leather | N35: 1.98 | U35: 30 | V35: Textiles/leather | W35: 0 | X35: 1519.089037 | Y35: 0 | Z35: 0
B36: 31 | C36: Nonmetal min. prods. | D36: 0.09963179536 | K36: SCTG | L36: 31 | M36: Nonmetal min. prods. | N36: 0.65 | U36: 31 | V36: Nonmetal min. prods. | W36: 0 | X36: 62705.36174 | Y36: 0 | Z36: 0
B37: 32 | C37: Base metals | D37: 0.01055814077 | K37: SCTG | L37: 32 | M37: Base metals | N37: 1.05 | U37: 32 | V37: Base metals | W37: 0 | X37: 10734.2106 | Y37: 0 | Z37: 0
B38: 33 | C38: Articles-base metal | D38: 0.02170285796 | K38: SCTG | L38: 33 | M38: Articles-base metal | N38: 1.35 | U38: 33 | V38: Articles-base metal | W38: 0 | X38: 28369.00222 | Y38: 0 | Z38: 0
B39: 34 | C39: Machinery | D39: 0.007983695954 | K39: SCTG | L39: 34 | M39: Machinery | N39: 3.93 | U39: 34 | V39: Machinery | W39: 0 | X39: 30380.14933 | Y39: 0 | Z39: 0
B40: 35 | C40: Electronics | D40: 0.003479537565 | K40: SCTG | L40: 35 | M40: Electronics | N40: 3.93 | U40: 35 | V40: Electronics | W40: 0 | X40: 13240.59326 | Y40: 0 | Z40: 0
B41: 36 | C41: Motorized vehicles | D41: 0.01200724674 | K41: SCTG | L41: 36 | M41: Motorized vehicles | N41: 4.28 | U41: 36 | V41: Motorized vehicles | W41: 0 | X41: 49760.02258 | Y41: 0 | Z41: 0
B42: 37 | C42: Transport equip. | D42: 0.002030357458 | K42: SCTG | L42: 37 | M42: Transport equip. | N42: 1.69 | U42: 37 | V42: Transport equip. | W42: 0 | X42: 3322.40502 | Y42: 0 | Z42: 0
B43: 38 | C43: Precision instruments | D43: 0.0005601307316 | K43: SCTG | L43: 38 | M43: Precision instruments | N43: 5 | U43: 38 | V43: Precision instruments | W43: 0 | X43: 2711.769488 | Y43: 0 | Z43: 0
B44: 39 | C44: Furniture | D44: 0.005953461584 | K44: SCTG | L44: 39 | M44: Furniture | N44: 1.76 | U44: 39 | V44: Furniture | W44: 0 | X44: 10145.54983 | Y44: 0 | Z44: 0
B45: 40 | C45: Misc. mfg. prods. | D45: 0.007114393783 | K45: SCTG | L45: 40 | M45: Misc. mfg. prods. | N45: 2.71 | U45: 40 | V45: Misc. mfg. prods. | W45: 0 | X45: 18668.11877 | Y45: 0 | Z45: 0
B46: 41 | C46: Waste/scrap | D46: 0.0324236495 | K46: SCTG | L46: 41 | M46: Waste/scrap | N46: 1 | U46: 41 | V46: Waste/scrap | W46: 0 | X46: 31394.62216 | Y46: 0 | Z46: 0
B47: 43 | C47: Mixed freight | D47: 0.04648524603 | K47: SCTG | L47: 43 | M47: Mixed freight | N47: 1 | U47: 43 | V47: Mixed freight | W47: 0 | X47: 45009.94668 | Y47: 0 | Z47: 0
B48: 99 | C48: Unknown | K48: SCTG | L48: 99 | M48: Unknown | N48: 1 | U48: 99 | V48: Unknown | W48: 0 | X48: 0 | Y48: 0 | Z48: 0
C49: Total | D49: =SUM(D6:D48) -> 1 | W49: =SUM(W6:W48) -> 0 | X49: =SUM(X6:X48) -> 660789.3135
X50: ='Traffic Group Benefits'!R40 -> 660789.3135
